Workbook

Sheet Read Me
A1: =RIGHT( CELL("filename",$B$1), LEN( CELL("filename",$B$1)) - SEARCH("]", CELL("filename",$B$1))) -> Read Me
C3: Authors | D3: Lingyi YANG
C4: Contact in IGF
C5: Owner
C6: Version Date | D6: 2023-01-31
A10: User guide
C11: Model structure
D12: The model applies user-configured fiscal regimes to user-configured mining project. This simplified model is currently configured to handle deep sea mining projects for Polymetallic nodules. The model structure is set out in the MODEL MAP sheet.
C13: Checks | D13: The model has a number of checks to test its internal consistency. These checks will remain green. If the master check cell is red, there is a problem in the model. It can be an error needs to be corrected, or the check itself refined, or the assumptions made is not going to be reached (for example: the cashflow is not enough to repay the debt as expected in the assumptions). In all case, red checks must be addressed.
C15: FAST modeling standard
D16: This model has been structured broadly in line with the FAST modeling standard (www.fast-standard.org/). Color coding: is set out in the ModelMap sheet Key part. The user should only need to change cells with yellow background.
B17: Inputs
C18: Project data
D19: Project Assumptions are entered in INPUT sheet, including :
E20: Project lifecycle and production: project lifecycle is composed of pre-feasibility phase, feasibility phase, build&design phase and operation phase
E21: Project capital expenditures and its depreciations, residual value and site restoration Cost
E22: Operating expenditures and other costs and fees
C23: Fiscal regime assumptions
D24: Fiscal regime inputs, including tax parameters and rates, are entered in the yellow cells on the top of FISCSALMODEL sheet. Either amend an existing set of parameters or use a blank column to create a new regime. Give the regime a name, as this becomes the label used to select the regime from the DASHBOARD.
C25: Financing and economic assumptions
D26: Debt financing inputs are included in each fiscal regime. The start year of debt financing can be changed as it is not always the case to have debt financing during the pre-feasibility and feasibility phase .
D27: LIBOR real terms interest rates and inflation rates are entered in the INPUT sheet. Proportion of costs financed, interest rate and repayment period are included in fiscal regime parameters.
D28: The model is currently set up assuming in deep sea mining project, the Collector collecting the nodules in the deep sea and the collected nodules are processed by a processor who charges the collector for the processing operation. Results are based on collector cashflow allocated to International Seabed Authority, Collector shareholder and, if applicable the sponsoring state and the external lender, under a given internal return rate for the processor.
B30: Dashboard
D31: The DASHBOARD is where the user will spend most time driving the model.
D32: Select fiscal regime: drop-down list on top left
E33: Fiscal regime parameters are entered in FISCALMODEL
D34: Select project revenue base - Manganese metal or ore: drop-down list on top left
E35: The Polymetallic nodule collected contains mainly 4 metals to be processed and sold: Manganese, Nickel, Cobalt and Copper. For Manganese, the revenue can be based either from sale of Manganese metal or from sale of Manganese ore.
D36: Change metal prices: entered top left
C37: Dashboard results
D38: Project Cashflows (table and chart top-centre) : Present the project cashflows during the life of the project, the project cashflow is the total cashflows of the collector and processor. Cashflows for collector and processor can be found in CHARTS sheet.
D39: Participants cashflows (table and chart top center-right). Breakdown of collector cashflows to different participants including: International Seabed Authority, Sponsoring State, Collector Shareholder and External Lender
D40: ISA Revenue composition (table and chart right). Summary of ISA revenues by category.
D41: Participant Discount Cashflow including: International Seabed Authority, Sponsoring State, Collector Shareholder and Collector Shareholder Return rate (table and chart lower-Left)
D42: Results under different fiscal regimes (table and charts): Participants total cashflows, NPV, share % and ISA revenue compostion. Press the Macro buttion to ensure the data updates
B44: =Dashboard!A86 -> Dashboard Analytical Routines
C45: =Dashboard!A88 -> Participants Cash Flow Allocation
D46: Detailed participants cashflow and their share of total cashflow through the life cycle of the project.
D47: Press F9 to ensure table updates
C48: =Dashboard!A118 -> Price Sensitivity
D49: Sensitivity analysis showing results of cashflows for different participants and collector shareholder IRR across a user-defined price range and AETR under diffrent fiscal regimes across a user-defined price range.
D50: Press the Macro buttion to ensure the data updates
C51: =Dashboard!A147 -> Production Sensitivity
D52: Sensitivity analysis showing results of cashflows for different participants and collector shareholder IRR across a user-defined production range and AETR under diffrent fiscal regimes across a user-defined production range.
D53: Press the Macro buttion to ensure the data updates
C54: =Dashboard!A176 -> Opex Sensitivity
D55: Sensitivity analysis showing results of cashflows for different participants and collector shareholder IRR across a user-defined production range and AETR under diffrent fiscal regimes across a user-defined production range.
D56: Press the Macro buttion to ensure the data updates
C57: =Dashboard!A205 -> Capex Sensitivity
D58: Sensitivity analysis showing results of cashflows for different participants and collector shareholder IRR across a user-defined production range and AETR under diffrent fiscal regimes across a user-defined production range.
D59: Press the Macro buttion to ensure the data updates
B60: Workings/calculations
D61: The logic flow in the model is as set out in the MODELMAP:
D62: Select applicable fiscal regime in Dashboard
D63: Select applicable revenue basis
D64: Set metal price(s)
D65: Enter project data in INPUT sheet
D66: The processing charge is a fixed rate calculated by set processor internal return rate to a user-defined level set in INPUT sheet, and press the macro button at the end of PROJECTCASHFLOWS sheet to get the corresponding fixed rate processing charges.
D67: The PROJECTCASHFLOWS sheet imports project inputs from the INPUT sheet
D68: Fiscal calculations are done in the FISCALMODEL sheet, change fiscal assumption as needed in yellow cells at the top of FISCALMODEL sheet
D69: The RESULT sheet compiles results from the model and derives outcomes for each participants and cashflows. Different cashflows under nominal and real terms are calculated and then exported to CHARTS sheet with charts presentation and Dashboard.
D76: \

Sheet Model Map
A1: =RIGHT( CELL("filename",$A$1), LEN( CELL("filename",$A$1)) - SEARCH("]", CELL("filename",$A$1))) -> Model Map | F1: ='Model Map'!E$25 -> 0 | N1: Key
C3: =Dashboard!A1 -> Dashboard | E3: =Dashboard!A86 -> Dashboard Analytical Routines | G3: =+'T&E'!A1 -> T&E | I3: =Results!A1 -> Results | N3: Key
E4: =Dashboard!A88 -> Participants Cash Flow Allocation | G4: =+'T&E'!A4 -> Flags and Counters | I4: =Results!A4 -> Collector Cash Flow Allocation | O4: Sheet tabs
E5: =Dashboard!A118 -> Price Sensitivity | G5: =+'T&E'!A79 -> Escalation | I5: =Results!A87 -> Project Cashflow in Nominal terms | Q5: Documentation Sheet | U5: Grey
E6: =Dashboard!A147 -> Production Sensitivity | I6: =Results!A114 -> Project Cashflow in Real terms | Q6: Presentation & Control Sheet | U6: White
E7: =Dashboard!A176 -> Opex Sensitivity | G7: ='Project Cashflows'!A1 -> Project Cashflows | Q7: Foundation (Input) sheets | U7: Yellow
E8: =Dashboard!A$205 -> Capex Sensitivity | G8: ='Project Cashflows'!A4 -> Project data with sensitivity factors applied | Q8: Working Sheet | U8: Transparent/light gray
G9: ='Project Cashflows'!A107 -> Project data | I9: =Charts!A1 -> Charts
E10: =Inputs!A1 -> Inputs | G10: ='Project Cashflows'!A205 -> Project Cashflow (Nominal) | I10: =Charts!A4 -> Participants Cashflows | O10: Cells
E11: =Inputs!A5 -> Project General Assumptions | G11: ='Project Cashflows'!A297 -> Project Cashflow (Real) | I11: =Charts!A72 -> Project Cashflow (Nominal) | Q11: Input cell | U11: Yellow cell
E12: =Inputs!A106 -> Other Operation Fees Assumptions | G12: ='Project Cashflows'!A326 -> Collector Cashflow (Nominal) | I12: =+Charts!A126 -> Project Cashflow (Real) | Q12: Imported line item | U12: Blue text
E13: =Inputs!A124 -> Economic assumptions | G13: ='Project Cashflows'!A365 -> Collector Cashflow (Real) | Q13: Exported line item | U13: Red text
E14: =Inputs!A137 -> Technical parameters | G14: ='Project Cashflows'!A399 -> Processor Cashflow (Nominal) | Q14: Calling fiscal parameter from fiscal regime inputs | U14: Green text
E15: =Inputs!A141 -> Global labels | G15: ='Project Cashflows'!A421 -> Processor Cashflow (Real) | Q15: Intra-sheet counter-flow | U15: Grey cell
Q16: Used for all other line items (links and formulas) | U16: Black text
G17: ='Fiscal Model'!A1 -> Fiscal Model
G18: ='Fiscal Model'!A4 -> Fiscal regime parameters | O18: Error checks & alerts
G19: ='Fiscal Model'!A96 -> Royalty | Q19: OK | U19: Green shade
G20: ='Fiscal Model'!A505 -> Collector debt financing | Q20: Error | U20: Red shade
G21: ='Fiscal Model'!A573 -> CIT depreciation
G22: ='Fiscal Model'!A631 -> Resource rent tax (Profit share - ISA) | O22: Abbreviations
G23: ='Fiscal Model'!A684 -> Project Accounting Profit | Q23: Corporate income tax | U23: CIT
G24: ='Fiscal Model'!A719 -> Collector Accounting profit | Q24: Internal rate of return | U24: IRR
G25: ='Fiscal Model'!A753 -> Processor Accounting Profit | Q25: London Interbank Offered Rate | U25: LIBOR
G26: ='Fiscal Model'!A771 -> Withholding Taxes | Q26: Net present value | U26: NPV
G27: ='Fiscal Model'!A798 -> Revenue Allocation | Q27: Resource rent tax | U27: RRT
Q28: Millions of dry tonnes | U28: DMT
Q29: United States Dollars | U29: US$
Q30: Operating Expenditure | U30: Opex
B31: To: | G31: Go to sheet / cell: | Q31: Capital Expenditure | U31: Capex
B32: Enter General Project Assumptions | G32: =Inputs!A1 -> Inputs
B33: Enter Fiscal Assumptions | G33: ='Fiscal Model'!A4 -> Fiscal regime parameters
B34: Select fiscal regime | G34: =Dashboard!B6 -> Fiscal regime selected
B35: Change metal price | G35: =Dashboard!B9 -> Metal Price Assumption
B36: Review results | G36: =Dashboard!A$1 -> Dashboard | O36: Name ranges used in the model
B37: Review detailed results | G37: =Results!A1 -> Results | Q37: CHK_TOL | R37: =Inputs!$F$73
B38: Analytical routines | G38: =+Dashboard!A86 -> Dashboard Analytical Routines | Q38: diffIRR | R38: =ProjectCashflows!$F$333
Q39: Processcharge | R39: =ProjectCashflows!$F$334

Sheet Dashboard
A1: =RIGHT( CELL("filename",$A$1), LEN( CELL("filename",$A$1)) - SEARCH("]", CELL("filename",$A$1))) -> Dashboard
B3: Overall checks | C3: ='Project Cashflows'!F3+'Fiscal Model'!F3+Dashboard!L82+Results!F3 -> 0
B4: Project, Fiscal Regime & Prices | G4: Project Cashflows | O4: Participants Cashflows | T4: ISA Revenue Composition
G5: Project Cashflows - Real | O5: Participant total cashflows - Real | T5: ISA Revenue Composition - Real
B6: Fiscal regime selected | C6: Option 4 (b) profit share | D6: Option | H6: Total Cash flow | O6: Total Cash flow | P6: US$ mn (Real) | Q6: Share% | R6: % | T6: =Results!G73 -> US$ mn (Real) | U6: Total revenue | V6: % of ISA Revenue
B7: Project Revenue basis for Manganese | C7: Manganese Ore | D7: Option | G7: Total Revenue | H7: =Results!I117 -> 51164.1129 | I7: US$ mn (Real) | O7: ='Fiscal Model'!E806 -> ISA Revenue | P7: =Results!I23 -> 3177.994892 | Q7: ISA % | R7: =Charts!F43 -> 0.1463269009 | T7: Royalty | U7: =Results!I75 -> 2831.113265 | V7: =U7/$P$7 -> 0.8908489035
G8: Total Capital Expenditure | H8: =Results!I119 -> 3509.922093 | I8: US$ mn (Real) | O8: ='Fiscal Model'!E816 -> Sponsoring State Revenue | P8: =Results!I30 -> 6128.493749 | Q8: Sponsoring State % | R8: =Charts!F45 -> 0.2821790242 | T8: Fixed-rate Royalty Stage 1 | U8: =Results!I76 -> 168.0607127 | V8: 0.05288262519
B9: Metal Price Assumption | G9: Operating Expenditure | H9: =Results!I118 -> 17369.1934 | I9: US$ mn (Real) | O9: All payments to public entities | P9: =+P8+P7 -> 9306.488641 | Q9: AETR | R9: =+R8+R7 -> 0.4285059251 | T9: Fixed-rate Royalty Stage 2 | U9: =Results!I77 -> 0 | V9: 0
B10: Manganese Metal Price | C10: 1560 | D10: US$/T | G10: Total fees, Royalties, taxes | H10: =Results!I120 -> 14168.75762 | I10: US$ mn (Real) | O10: ='Fiscal Model'!E809 -> Collector - Shareholder cashflow | P10: =Results!I24 -> 12104.62268 | Q10: Collector Shareholder % | R10: =Charts!F44 -> 0.5573425959 | T10: Price-based royalty - Stage 2 | U10: =Results!I78 -> 2663.052552 | V10: 0.8379662783
B11: Manganese Ore Price | C11: 4.75 | D11: US$/DMTU | G11: Project Net Cashflow | H11: =Results!I121 -> 16116.23979 | I11: US$ mn (Real) | O11: ='Fiscal Model'!E819 -> Loan provider cashflow | P11: =Results!I31 -> 307.3483253 | Q11: Loan Provider % | R11: =Charts!F46 -> 0.01415147899 | T11: Additional Royalty | U11: =Results!I79 -> 0 | V11: 0
B12: Nickel Price | C12: 20000 | D12: US$/T | K12: Go to: | O12: Check: Participant cashflow | P12: =IF( ABS( P10+P9+P11-Results!I32 ) > CHK_TOL, 1, 0) -> 0 | T12: Resource rent tax (Profit share) | U12: =Results!I80 -> 0 | V12: 0
B13: Cobalt Price | C13: 60000 | D13: US$/T | G13: Check: Project Net Cashflow | H13: =IF( ABS( H7-H8-H9-H10-H11 ) > CHK_TOL, 1, 0) -> 0 | K13: =Charts!A126 -> Project Cashflow (Real) | T13: Exploration & Exploitation fees to ISA | U13: =Results!I81 -> 4.82 | V13: 0.001516679593
B14: Copper Price | C14: 9000 | D14: US$/T | K14: Collector/Processor Net Cashflow | T14: Environmental Levies | U14: =Results!I82 -> 342.0616273 | V14: 0.107634417
T15: Check: ISA Revenue | U15: =IF( ABS( U7+U11+U12+U13+U14-Dashboard!P7 ) > CHK_TOL, 1, 0) -> 0
B16: Price sensitivity | C16: 1 | D16: factor | E16: Go to: | T16: Check: Total Royalty | U16: =IF( ABS(U7-U8-U9-U10) > CHK_TOL, 1, 0) -> 0
B17: Production sensitivity | C17: 1 | D17: factor | E17: Sensitivity Test
B18: Opex sensitivity | C18: 1 | D18: factor
B19: Capex sensitivity | C19: 1 | D19: factor
B21: Participants Discount Cashflow
B22: ISA Revenue NPV | C22: =Results!F40 -> 604.7793265 | D22: US$ mn
B23: Sponsoring State Revenue NPV | C23: =Results!I47 -> 1161.884732 | D23: US$ mn
B24: Collector Shareholder NPV | C24: =Results!F44 -> 1866.782186 | D24: US$ mn
B25: Collector Shareholder IRR (real term CF) | C25: =Results!F50 -> 0.2147475751 | D25: %
B26: Collector Shareholder Payback Period | C26: =Results!F54 -> 14.59066592 | D26: Years
B35: Results under different fiscal regimes
T37: Participant total cashflows - Nominal | U37: ='Fiscal Model'!K8 -> Option 1 | V37: ='Fiscal Model'!L8 -> Option 2 | W37: ='Fiscal Model'!M8 -> Option 3 | X37: ='Fiscal Model'!N8 -> Option 4 | Y37: ='Fiscal Model'!O8 -> Option 4 (b) add royalty | Z37: ='Fiscal Model'!P8 -> Option 4 (b) profit share
T38: =O7 -> ISA Revenue | U38: 3252.438315 | V38: 3497.428228 | W38: 4894.474171 | X38: 3177.994892 | Y38: 3177.994892 | Z38: 3177.994892
T39: =O8 -> Sponsoring State Revenue | U39: 6156.433939 | V39: 6042.545787 | W39: 6487.184052 | X39: 6128.493749 | Y39: 6128.493749 | Z39: 6128.493749
T40: All payments to public entities | U40: 9408.872255 | V40: 9539.974014 | W40: 11381.65822 | X40: 9306.488641 | Y40: 9306.488641 | Z40: 9306.488641
T41: Collector - Shareholder cashflow | U41: 12162.6523 | V41: 11926.11537 | W41: 10505.87724 | X41: 12104.62268 | Y41: 12104.62268 | Z41: 12104.62268
T42: Loan provider cashflow | U42: 307.3483253 | V42: 307.3483253 | W42: 307.3483253 | X42: 307.3483253 | Y42: 307.3483253 | Z42: 307.3483253
T44: Participant cashflows %
T45: =$Q$7 -> ISA % | U45: 0.1486565753 | V45: 0.1606282055 | W45: 0.2205226311 | X45: 0.1463269009 | Y45: 0.1463269009 | Z45: 0.1463269009
T46: =$Q$8 -> Sponsoring State % | U46: 0.2813871616 | V46: 0.2775191436 | W46: 0.2922828573 | X46: 0.2821790242 | Y46: 0.2821790242 | Z46: 0.2821790242
T47: =$Q$9 -> AETR | U47: 0.4300437369 | V47: 0.4381473491 | W47: 0.5128054884 | X47: 0.4285059251 | Y47: 0.4285059251 | Z47: 0.4285059251
T48: =$Q$10 -> Collector Shareholder % | U48: 0.555908541 | V48: 0.5477369045 | W48: 0.4733468011 | X48: 0.5573425959 | Y48: 0.5573425959 | Z48: 0.5573425959
T49: =$Q$11 -> Loan Provider % | U49: 0.01404772206 | V49: 0.01411574641 | W49: 0.0138477105 | X49: 0.01415147899 | Y49: 0.01415147899 | Z49: 0.01415147899
T51: Participant NPV and return rate
T52: =B22 -> ISA Revenue NPV | U52: 683.7786865 | V52: 669.5950309 | W52: 936.2301119 | X52: 604.7793265 | Y52: 604.7793265 | Z52: 604.7793265
T53: Sponsoring State Revenue NPV | U53: 1146.775224 | V53: 1144.440644 | W53: 1221.834994 | X53: 1161.884732 | Y53: 1161.884732 | Z53: 1161.884732
T54: Collector Shareholder NPV | U54: 1835.400901 | V54: 1830.552157 | W54: 1571.930942 | X54: 1866.782186 | Y54: 1866.782186 | Z54: 1866.782186
T55: Collector Shareholder IRR (real term CF) | U55: 0.2096737778 | V55: 0.2132650642 | W55: 0.2016394755 | X55: 0.2147475751 | Y55: 0.2147475751 | Z55: 0.2147475751
T56: Collector Shareholder Payback Period | U56: 14.97671969 | V56: 14.57877047 | W56: 14.77908166 | X56: 14.59066592 | Y56: 14.59066592 | Z56: 14.59066592
T58: ISA Revenue Composition
T59: =T7 -> Royalty | U59: 2905.556688 | V59: 3150.5466 | W59: 1162.222675 | X59: 2831.113265 | Y59: 2831.113265 | Z59: 2831.113265
T60: Fixed-rate Royalty Stage 1 | U60: 420.1517818 | V60: 168.0607127 | W60: 168.0607127 | X60: 168.0607127 | Y60: 168.0607127 | Z60: 168.0607127
T61: Fixed-rate Royalty Stage 2 | U61: 2485.404906 | V61: 2982.485888 | W61: 994.1619626 | X61: 0 | Y61: 0 | Z61: 0
T62: Price-based royalty - Stage 2 | U62: 0 | V62: 0 | W62: 0 | X62: 2663.052552 | Y62: 2663.052552 | Z62: 2663.052552
T63: Additional Royalty | U63: 0 | V63: 0 | W63: 0 | X63: 0 | Y63: 0 | Z63: 0
T64: Resource rent tax (Profit share) | U64: 0 | V64: 0 | W64: 3385.369869 | X64: 0 | Y64: 0 | Z64: 0
T65: Exploration & Exploitation fees to ISA | U65: 4.82 | V65: 4.82 | W65: 4.82 | X65: 4.82 | Y65: 4.82 | Z65: 4.82
T66: Environmental Levies | U66: 342.0616273 | V66: 342.0616273 | W66: 342.0616273 | X66: 342.0616273 | Y66: 342.0616273 | Z66: 342.0616273
A73: =RIGHT( CELL("filename",$A$1), LEN( CELL("filename",$A$1)) - SEARCH("]", CELL("filename",$A$1))) -> Dashboard
B75: Links to analytical routines | G75: Dashboard Check
B76: =A88 -> Participants Cash Flow Allocation
B77: =A118 -> Price Sensitivity | G77: =G13 -> Check: Project Net Cashflow | L77: =H13 -> 0 | M77: Check
B78: =A147 -> Production Sensitivity | G78: =O12 -> Check: Participant cashflow | L78: =P12 -> 0 | M78: Check
B79: =A176 -> Opex Sensitivity | G79: =T15 -> Check: ISA Revenue | L79: =U15 -> 0 | M79: Check
B80: =A205 -> Capex Sensitivity | G80: =T16 -> Check: Total Royalty | L80: =U16 -> 0 | M80: Check
G82: Check: Dashboard | L82: =+SUM(L77:L80) -> 0 | M82: Check
A86: Dashboard Analytical Routines
A88: Participants Cash Flow Allocation
R90: To go to | S90: =Charts!$E$6 -> Participants Nominal Cash Flow Allocation
A118: Price Sensitivity | F118: Go to | G118: =$A$1 -> Dashboard
T119: Attention: The data table updates will set the fiscal regime to option 4b+ automatically, for sensitivity test for other options, please make sure that the regime selected is the wanted regime before press the update button.
T121: =B$6 -> Fiscal regime selected | U121: =C$6 -> Option 4 (b) profit share | V121: =D$6 -> Option
T122: =B$7 -> Project Revenue basis for Manganese | U122: =C$7 -> Manganese Ore | V122: =D$7 -> Option
T124: =B16 -> Price sensitivity | U124: =C16 -> 1 | V124: =D16 -> factor
T125: Starting price multiplier | U125: 0.7 | V125: %
T126: Increment | U126: 0.15 | V126: %
T128: =$O$5&" - "&T124 -> Participant total cashflows - Real - Price sensitivity
T129: US$ mn | U129: =$U$125 -> 0.7 | V129: =U129+$U$126 -> 0.85 | W129: =V129+$U$126 -> 1 | X129: 1.15 | Y129: 1.3
T130: =$O$7 -> ISA Revenue | U130: 3230.923271 | V130: 3900.248134 | W130: 4669.237836 | X130: 5534.507926 | Y130: 6448.161367
T131: =$O$8 -> Sponsoring State Revenue | U131: 2275.07887 | V131: 3970.454838 | W131: 5705.986532 | X131: 7426.311369 | Y131: 9174.744339
T132: =$O$9 -> All payments to public entities | U132: 5506.002141 | V132: 7870.702972 | W132: 10375.22437 | X132: 12960.81929 | Y132: 15622.90571
T133: =$Q$9 -> AETR | U133: 0.5570384641 | V133: 0.4981270572 | W133: 0.4735452178 | X133: 0.4617607352 | Y133: 0.4546603776
T134: =$O$10 -> Collector - Shareholder cashflow | U134: 4071.069544 | V134: 7622.541862 | W134: 11227.10769 | X134: 14800.09004 | Y134: 18431.45083
T135: =$O$11 -> Loan provider cashflow | U135: 307.3483253 | V135: 307.3483253 | W135: 307.3483253 | X135: 307.3483253 | Y135: 307.3483253
T136: =$B$25 -> Collector Shareholder IRR (real term CF) | U136: 0.1029744911 | V136: 0.1620876601 | W136: 0.2096713829 | X136: 0.2489305189 | Y136: 0.2828436558
T138: ="AETR - " &T124 -> AETR - Price sensitivity
T139: =$R$7 -> 0.1463269009 | U139: =$U$125 -> 0.7 | V139: =U139+$U$126 -> 0.85 | W139: =V139+$U$126 -> 1 | X139: 1.15 | Y139: 1.3
T140: =+'Fiscal Model'!$K$8 -> Option 1 | U140: 0.5004629201 | V140: 0.45203132 | W140: 0.4300437369 | X140: 0.4175459342 | Y140: 0.4092177778
T141: =+'Fiscal Model'!$L$8 -> Option 2 | U141: 0.5122016017 | V141: 0.4615789373 | W141: 0.4381473491 | X141: 0.4248268024 | Y141: 0.4159285211
T142: =+'Fiscal Model'!$M$8 -> Option 3 | U142: 0.5362493099 | V142: 0.5197934555 | W142: 0.5128054884 | X142: 0.5089080265 | Y142: 0.5063596413
T143: =+'Fiscal Model'!$N$8 -> Option 4 | U143: 0.4893227011 | V143: 0.4455031821 | W143: 0.4285059251 | X143: 0.4211820401 | Y143: 0.417085434
T144: =+'Fiscal Model'!$O$8 -> Option 4 (b) add royalty | U144: 0.5496306856 | V144: 0.4511008297 | W144: 0.4285059251 | X144: 0.4211820401 | Y144: 0.417085434
T145: =+'Fiscal Model'!$P$8 -> Option 4 (b) profit share | U145: 0.4893227011 | V145: 0.4455031821 | W145: 0.4285059251 | X145: 0.4211820401 | Y145: 0.417085434
A147: Production Sensitivity | F147: Go to | G147: =$A$1 -> Dashboard
T150: =B$6 -> Fiscal regime selected | U150: =C$6 -> Option 4 (b) profit share | V150: =D$6 -> Option
T151: =B$7 -> Project Revenue basis for Manganese | U151: =C$7 -> Manganese Ore | V151: =D$7 -> Option
T153: =B17 -> Production sensitivity | U153: =C17 -> 1 | V153: =D17 -> factor
T154: Starting production multiplier | U154: 0.8 | V154: %
T155: Increment | U155: 0.1 | V155: %
T157: =$O$5&" - "&T153 -> Participant total cashflows - Real - Production sensitivity
T158: US$ mn | U158: =$U$154 -> 0.8 | V158: =U158+$U$155 -> 0.9 | W158: 1 | X158: 1.1 | Y158: 1.2
T159: =$O$7 -> ISA Revenue | U159: 2288.770204 | V159: 2579.923887 | W159: 2869.699787 | X159: 3159.271397 | Y159: 3448.853782
T160: =$O$8 -> Sponsoring State Revenue | U160: 3342.351068 | V160: 3920.266961 | W160: 4497.844864 | X160: 5078.070343 | Y160: 5658.416808
T161: =$O$9 -> All payments to public entities | U161: 5631.121273 | V161: 6500.190848 | W161: 7367.544651 | X161: 8237.341739 | Y161: 9107.27059
T162: =$Q$9 -> AETR | U162: 0.490905228 | V162: 0.4852812897 | W162: 0.4812355388 | X162: 0.4782139199 | Y162: 0.4757983576
T163: =$O$10 -> Collector - Shareholder cashflow | U163: 5528.779405 | V163: 6583.503696 | W163: 7631.106904 | X163: 8676.889766 | Y163: 9722.767132
T164: =$O$11 -> Loan provider cashflow | U164: 310.9921784 | V164: 310.9921784 | W164: 310.9921784 | X164: 310.9921784 | Y164: 310.9921784
T165: =$B$25 -> Collector Shareholder IRR (real term CF) | U165: 0.1258843166 | V165: 0.1431553702 | W165: 0.1590520624 | X165: 0.1738307155 | Y165: 0.1877418528
T167: ="AETR - " &T153 -> AETR - Production sensitivity
U168: =$U$154 -> 0.8 | V168: =U168+$U$155 -> 0.9 | W168: 1 | X168: 1.1 | Y168: 1.2
T169: =+'Fiscal Model'!$K$8 -> Option 1 | U169: 0.4796038775 | V169: 0.4641763679 | W169: 0.4528571633 | X169: 0.4442218799 | Y169: 0.4373658521
T170: =+'Fiscal Model'!$L$8 -> Option 2 | U170: 0.4895821196 | V170: 0.4735949915 | W170: 0.4617399893 | X170: 0.4526488953 | Y170: 0.4453698677
T171: =+'Fiscal Model'!$M$8 -> Option 3 | U171: 0.4909199541 | V171: 0.4853171642 | W171: 0.4812595637 | X171: 0.4782317449 | Y171: 0.4758115732
T172: =+'Fiscal Model'!$N$8 -> Option 4 | U172: 0.4929752784 | V172: 0.4766963494 | W172: 0.464622484 | X172: 0.4553611803 | Y172: 0.4479460077
T173: =+'Fiscal Model'!$O$8 -> Option 4 (b) add royalty | U173: 0.4958632446 | V173: 0.4728276434 | W173: 0.4560035759 | X173: 0.4433657038 | Y173: 0.434559543
T174: =+'Fiscal Model'!$P$8 -> Option 4 (b) profit share
A176: Opex Sensitivity | F176: Go to | G176: =$A$1 -> Dashboard
T179: =B$6 -> Fiscal regime selected | U179: =C$6 -> Option 4 (b) profit share | V179: =D$6 -> Option
T180: =B$7 -> Project Revenue basis for Manganese | U180: =C$7 -> Manganese Ore | V180: =D$7 -> Option
T182: =B18 -> Opex sensitivity | U182: =C18 -> 1 | V182: =D18 -> factor
T183: Starting opex multiplier | U183: 0.8 | V183: %
T184: Increment | U184: 0.1 | V184: %
T186: =$O$5&" - "&T182 -> Participant total cashflows - Real - Opex sensitivity
T187: US$ mn | U187: =$U$183 -> 0.8 | V187: =U187+$U$184 -> 0.9 | W187: =V187+$U$184 -> 1 | X187: 1.1 | Y187: 1.2
T188: =$O$7 -> ISA Revenue | U188: 4401.152828 | V188: 4308.992143 | W188: 4217.489271 | X188: 4126.432323 | Y188: 4035.850797
T189: =$O$8 -> Sponsoring State Revenue | U189: 6970.912149 | V189: 6522.327751 | W189: 6076.932178 | X189: 5633.698276 | Y189: 5192.769038
T190: =$O$9 -> All payments to public entities | U190: 11372.06498 | V190: 10831.31989 | W190: 10294.42145 | X190: 9760.130599 | Y190: 9228.619835
T191: =$Q$9 -> AETR | U191: 0.4606523145 | V191: 0.4652977449 | W191: 0.4705020418 | X191: 0.4763865349 | Y191: 0.4830912996
T192: =$O$10 -> Collector - Shareholder cashflow | U192: 13007.45924 | V192: 12139.58751 | W192: 11277.88331 | X192: 10420.36001 | Y192: 9567.294189
T193: =$O$11 -> Loan provider cashflow | U193: 307.3483253 | V193: 307.3483253 | W193: 307.3483253 | X193: 307.3483253 | Y193: 307.3483253
T194: =$B$25 -> Collector Shareholder IRR (real term CF) | U194: 0.2285665997 | V194: 0.2190026124 | W194: 0.20909513 | X194: 0.1987930552 | Y194: 0.1880652737
T196: ="AETR - " &T182 -> AETR - Opex sensitivity
U197: =$U$183 -> 0.8 | V197: =U197+$U$184 -> 0.9 | W197: =V197+$U$184 -> 1 | X197: 1.1 | Y197: 1.2
T198: =+'Fiscal Model'!$K$8 -> Option 1 | U198: 0.418284444 | V198: 0.4238352993 | W198: 0.4300437369 | X198: 0.4370255111 | Y198: 0.4453870938
T199: =+'Fiscal Model'!$L$8 -> Option 2 | U199: 0.4254625589 | V199: 0.4314508164 | W199: 0.4381473491 | X199: 0.4456762326 | Y199: 0.4547124603
T200: =+'Fiscal Model'!$M$8 -> Option 3 | U200: 0.5101616793 | V200: 0.5114072581 | W200: 0.5128054884 | X200: 0.5143942341 | Y200: 0.5163061911
T201: =+'Fiscal Model'!$N$8 -> Option 4 | U201: 0.4168641756 | V201: 0.4223587562 | W201: 0.4285059251 | X201: 0.4354204702 | Y201: 0.4437423661
T202: =+'Fiscal Model'!$O$8 -> Option 4 (b) add royalty | U202: 0.4168641756 | V202: 0.4223587562 | W202: 0.4285059251 | X202: 0.4354204702 | Y202: 0.4446802547
T203: =+'Fiscal Model'!$P$8 -> Option 4 (b) profit share | U203: 0.4168641756 | V203: 0.4223587562 | W203: 0.4285059251 | X203: 0.4354204702 | Y203: 0.4437423661
A205: Capex Sensitivity | F205: Go to | G205: =$A$1 -> Dashboard
T208: =B$6 -> Fiscal regime selected | U208: =C$6 -> Option 4 (b) profit share | V208: =D$6 -> Option
T209: =B$7 -> Project Revenue basis for Manganese | U209: =C$7 -> Manganese Ore | V209: =D$7 -> Option
T211: =B19 -> Capex sensitivity | U211: =C19 -> 1 | V211: =D19 -> factor
T212: Starting capex multiplier | U212: 0.8 | V212: %
T213: Increment | U213: 0.1 | V213: %
T215: =$O$5&" - "&T211 -> Participant total cashflows - Real - Capex sensitivity
T216: US$ mn | U216: =$U$212 -> 0.8 | V216: =U216+$U$213 -> 0.9 | W216: =V216+$U$213 -> 1 | X216: =W216+$U$213 -> 1.1 | Y216: 1.2
T217: =$O$7 -> ISA Revenue | U217: 4251.257398 | V217: 4149.826493 | W217: 4046.689893 | X217: 3943.888611 | Y217: 3841.232424
T218: =$O$8 -> Sponsoring State Revenue | U218: 7395.015531 | V218: 7166.898372 | W218: 6934.891507 | X218: 6702.745079 | Y218: 6470.601607
T219: =$O$9 -> All payments to public entities | U219: 11646.27293 | V219: 11316.72486 | W219: 10981.5814 | X219: 10646.63369 | Y219: 10311.83403
T220: =$Q$9 -> AETR | U220: 0.4688207125 | V220: 0.4696783272 | W220: 0.4706029808 | X220: 0.4716053362 | Y220: 0.4726831371
T221: =$O$10 -> Collector - Shareholder cashflow | U221: 12962.11774 | V221: 12529.11002 | W221: 12089.20453 | X221: 11648.77705 | Y221: 11208.25525
T222: =$O$11 -> Loan provider cashflow | U222: 233.2441338 | V222: 248.7937427 | W222: 264.3433516 | X222: 279.8929606 | Y222: 295.4425695
T223: =$B$25 -> Collector Shareholder IRR (real term CF) | U223: 0.2666357849 | V223: 0.2521057437 | W223: 0.2383371025 | X223: 0.2251824764 | Y223: 0.2126694888
T225: ="AETR - " &T211 -> AETR - Capex sensitivity
U226: =$U$212 -> 0.8 | V226: =U226+$U$213 -> 0.9 | W226: =V226+$U$213 -> 1 | X226: 1.1 | Y226: 1.2
T227: =+'Fiscal Model'!$K$8 -> Option 1 | U227: 0.4241994688 | V227: 0.4270962183 | W227: 0.4300437369 | X227: 0.4330547708 | Y227: 0.4361406294
T228: =+'Fiscal Model'!$L$8 -> Option 2 | U228: 0.4319604786 | V228: 0.4350284878 | W228: 0.4381473491 | X228: 0.4413311773 | Y228: 0.444592384
T229: =+'Fiscal Model'!$M$8 -> Option 3 | U229: 0.5108531254 | V229: 0.5118137675 | W229: 0.5128054884 | X229: 0.5138513711 | Y229: 0.5149440296
T230: =+'Fiscal Model'!$N$8 -> Option 4 | U230: 0.4227370559 | V230: 0.4255971644 | W230: 0.4285059251 | X230: 0.4314764046 | Y230: 0.4345201634
T231: =+'Fiscal Model'!$O$8 -> Option 4 (b) add royalty | U231: 0.4227370559 | V231: 0.4255971644 | W231: 0.4285059251 | X231: 0.4314764046 | Y231: 0.4345201634
T232: =+'Fiscal Model'!$P$8 -> Option 4 (b) profit share | U232: 0.4227370559 | V232: 0.4255971644 | W232: 0.4285059251 | X232: 0.4314764046 | Y232: 0.4345201634

Sheet Inputs
A1: =RIGHT( CELL("filename",$A$1), LEN( CELL("filename",$A$1)) - SEARCH("]", CELL("filename",$A$1))) -> Inputs | K1: ='Project Cashflows'!K1 -> 1 | L1: ='Project Cashflows'!L1 -> 2 | M1: ='Project Cashflows'!M1 -> 3 | N1: ='Project Cashflows'!N1 -> 4 | O1: ='Project Cashflows'!O1 -> 5 | P1: ='Project Cashflows'!P1 -> 6 | Q1: ='Project Cashflows'!Q1 -> 7 | R1: ='Project Cashflows'!R1 -> 8 | S1: ='Project Cashflows'!S1 -> 9 | T1: ='Project Cashflows'!T1 -> 10 | U1: ='Project Cashflows'!U1 -> 11 | V1: ='Project Cashflows'!V1 -> 12 | W1: ='Project Cashflows'!W1 -> 13 | X1: ='Project Cashflows'!X1 -> 14 | Y1: ='Project Cashflows'!Y1 -> 15 | Z1: ='Project Cashflows'!Z1 -> 16 | AA1: ='Project Cashflows'!AA1 -> 17 | AB1: ='Project Cashflows'!AB1 -> 18 | AC1: ='Project Cashflows'!AC1 -> 19 | AD1: ='Project Cashflows'!AD1 -> 20 | AE1: ='Project Cashflows'!AE1 -> 21 | AF1: ='Project Cashflows'!AF1 -> 22 | AG1: ='Project Cashflows'!AG1 -> 23 | AH1: ='Project Cashflows'!AH1 -> 24 | AI1: ='Project Cashflows'!AI1 -> 25 | AJ1: ='Project Cashflows'!AJ1 -> 26 | AK1: ='Project Cashflows'!AK1 -> 27 | AL1: ='Project Cashflows'!AL1 -> 28 | AM1: ='Project Cashflows'!AM1 -> 29 | AN1: ='Project Cashflows'!AN1 -> 30 | AO1: ='Project Cashflows'!AO1 -> 31 | AP1: ='Project Cashflows'!AP1 -> 32 | AQ1: ='Project Cashflows'!AQ1 -> 33 | AR1: ='Project Cashflows'!AR1 -> 34 | AS1: ='Project Cashflows'!AS1 -> 35 | AT1: ='Project Cashflows'!AT1 -> 36 | AU1: ='Project Cashflows'!AU1 -> 37 | AV1: ='Project Cashflows'!AV1 -> 0 | AW1: ='Project Cashflows'!AW1 -> 0 | AX1: ='Project Cashflows'!AX1 -> 0
E2: Row description | F2: Constant | G2: Units | H2: Comments | I2: Total
G3: ='Model Map'!$E$25 -> 0
A5: Project General Assumptions
B7: Production lifecycle and productions data
C9: Project lifecycle
E10: Pre Feasibility - start | F10: 1 | G10: year
E11: Pre Feasibility - end | F11: 6 | G11: year
E12: Feasibility - start | F12: 4 | G12: year
E13: Feasibility - end | F13: 7 | G13: year
E14: Design and Build - start | F14: 8 | G14: year
E15: Design and Build - end | F15: 11 | G15: year
E16: Ramp Up - start | F16: 12 | G16: year
E17: Ramp Up - end | F17: 13 | G17: year
E18: Full Operation - start | F18: 14 | G18: year
E19: Full Operation - end | F19: 36 | G19: year
E20: Shutdown - start | F20: 37 | G20: year
E21: Shutdown - end | F21: 37 | G21: year
C23: Production ramp up rate
E24: Ramp up rate (year 1) | F24: 0.7 | G24: %
E25: Ramp up rate (year 2) | F25: 0.85 | G25: %
E26: Full operation rate from year 3 | F26: 1
C28: Production (Full Operation)
E29: Annual Full Production Level | F29: =3855762/1000000 -> 3.855762 | G29: DMT
C31: Nodules metal content rate
E32: Manganese | F32: 0.284
E33: Nickel | F33: 0.013
E34: Cobalt | F34: 0.002
E35: Copper | F35: 0.011
C37: Nodules metal yield
E38: Manganese - Metal | F38: 0.9
E39: Manganese - Ore | F39: 0.99
E40: Nickel | F40: 0.9
E41: Cobalt | F41: 0.8
E42: Copper | F42: 0.9
C44: Nodules metal net recovery rate
E45: Manganese | F45: =F32*F38 -> 0.2556
E46: Nickel | F46: =F33*F40 -> 0.0117
E47: Cobalt | F47: =F34*F41 -> 0.0016
E48: Copper | F48: =F35*F42 -> 0.0099
B50: Project Cost
C52: Project Capital Expenditure | H52: % Nodule Collector
C53: Mn Metal
E54: Total Capex | F54: =SUM(F55:F59) -> 5460.353772 | G54: US$ mn | H54: =SUMPRODUCT(F55:F59,H55:H59)/$F$54 -> 0.4102696877
E55: Pre-Feasibility Phase - Mn Metal | F55: 50.47954207 | G55: US$ mn (real) | H55: 0.3961755926
E56: Feasibility Phase - Mn Metal | F56: 361.9200228 | G56: US$ mn (real) | H56: 0.6088157909
E57: Design & Build - Collection System | F57: 800.9962495 | G57: US$ mn (real) | H57: 1
E58: Design & Build - Mining Support Vessel + Transport Vessels | F58: 1198.88 | G58: US$ mn (real) | H58: 1
E59: Design & Build - Processing plant - Mn Metal | F59: 3048.077957 | G59: US$ mn (real) | H59: 0
C60: Mn Ore
E61: Total Capex | F61: =SUM(F62:F66) -> 3814.097973 | G61: US$ mn | H61: =SUMPRODUCT(F62:F66,H62:H66)/$F$61 -> 0.5873518857
E62: Pre-Feasibility Phase - Mn Ore | F62: 34.94990187 | G62: US$ mn (real) | H62: 0.5722122645
E63: Feasibility Phase - Mn Ore | F63: 284.2718218 | G63: US$ mn (real) | H63: 0.7751124382
E64: Design & Build - Collection System | F64: 800.9962495 | G64: US$ mn (real) | H64: 1
E65: Design & Build - Mining Support Vessel + Transport Vessels | F65: 1198.88 | G65: US$ mn (real) | H65: 1
E66: Design & Build - Processing plant - Mn Ore | F66: 1495 | G66: US$ mn (real) | H66: 0
C68: Depreciation
E69: Depreciation start year
E70: Pre-Feasibility Phase | F70: 12 | G70: year | H70: ="First year of Production = year "&$F$16 -> First year of Production = year 12
E71: Feasibility Phase | F71: 12 | G71: year | H71: ="First year of Production = year "&$F$16 -> First year of Production = year 12
E72: Design & Build - Collection System | F72: 12 | G72: year | H72: First year of Production = year 12
E73: Design & Build - Surface Vessels | F73: 12 | G73: year | H73: First year of Production = year 12
E74: Design & Build - Processing plant | F74: 12 | G74: year | H74: First year of Production = year 12
E75: Capitalized interest | F75: 12 | G75: year | H75: First year of Production = year 12
E76: Depreciation period
E77: Pre-Feasibility Phase | F77: 10 | G77: years | H77: Straight-Line depreciation
E78: Feasibility Phase | F78: 10 | G78: years | H78: Straight-Line depreciation
E79: Design & Build - Collection System | F79: 10 | G79: years | H79: Straight-Line depreciation with residual value
E80: Design & Build - Surface Vessels | F80: 10 | G80: years | H80: Straight-Line depreciation with residual value
E81: Design & Build - Processing plant | F81: 10 | G81: years | H81: Straight-Line depreciation with residual value
E82: Capitalized interest | F82: 10 | G82: years | H82: Straight-Line depreciation
C84: Decommissioning
E85: Residual value - Pre-Feasibility Phase | F85: 0 | G85: % of investment
E86: Residual value - Feasibility Phase | F86: 0 | G86: % of investment
E87: Residual value - Design & Build Phase | F87: 0.15 | G87: % of investment
E88: Site Restoration cost | F88: 59 | G88: US$ mn (real)
C90: Project Capital Maintenance Expenditure
E91: Collectors | F91: 47.2 | G91: US$ mn (real)
E92: Risers | F92: 49.855 | G92: US$ mn (real)
E93: Moorings | F93: 5.605 | G93: US$ mn (real)
C94: Interval years for capital maintenance expenditure:
E95: Collectors | F95: 2 | G95: years
E96: Risers | F96: 5 | G96: years
E97: Moorings | F97: 5 | G97: years
C99: Project Operational Expenditure
E100: Nodule Collectors | F100: 110.6641706 | G100: US$ mn/ton nodules/yr
E101: Metals Processors - Metal | F101: 256.658713 | G101: US$ mn/ton nodules/yr | H101: Processing cost for 4 metals
E102: Metals Processors - Ore | F102: 61.15659751 | G102: US$ mn/ton nodules/yr | H102: Processing cost for 3 metals + Manganese Ore
E103: Nodule Collectors - Opex cost fixed ratio during ramp up | F103: 0.5 | G103: %
E104: Metals Processors - Opex cost fixed ratio during ramp up | F104: 0.5 | G104: %
A106: Other Operation Fees Assumptions
C108: Fees for ISA
E109: Exploration License Application Fee | F109: 0.5 | G109: US$ mn (real)
E110: Annual admin fee during Exploration License | F110: 0.06 | G110: US$ mn (real) / annum
E111: Exploitation License Application Fee | F111: 1 | G111: US$ mn (real)
E112: Annual admin fee during Exploitation License | F112: 0.1 | G112: US$ mn (real) / annum
E113: Minimum Fixed fee during Exploitation License | F113: 1 | G113: US$ mn (real) / annum
C115: Environmental levies
E116: Environmental Bond | F116: 0 | G116: US$ mn
E117: Environmental Bond interest rate | F117: 0 | G117: %
E118: Environmental Liability Trust Fund max value | F118: 500 | G118: US$ mn (real)
E119: Environmental Liability Trust Fund rate | F119: 0.01 | G119: % | H119: % of gross value mined
E120: Seabed Sustainability Fund max value | F120: 0 | G120: US$ mn (real)
E121: Seabed Sustainability Fund rate | F121: 0 | G121: % | H121: % of gross value mined
A124: Economic assumptions
E126: Inflation rate | F126: 0.02 | G126: % | H126: Time series data from IMF inflation data for US, start point 2023 | K126: 0.035 | L126: 0.022 | M126: 0.02 | N126: 0.02 | O126: 0.02 | P126: 0.02 | Q126: 0.02 | R126: 0.02 | S126: 0.02 | T126: 0.02 | U126: 0.02 | V126: 0.02 | W126: 0.02 | X126: 0.02 | Y126: 0.02 | Z126: 0.02 | AA126: 0.02 | AB126: 0.02 | AC126: 0.02 | AD126: 0.02 | AE126: 0.02 | AF126: 0.02 | AG126: 0.02 | AH126: 0.02 | AI126: 0.02 | AJ126: 0.02 | AK126: 0.02 | AL126: 0.02 | AM126: 0.02 | AN126: 0.02 | AO126: 0.02 | AP126: 0.02 | AQ126: 0.02 | AR126: 0.02 | AS126: 0.02 | AT126: 0.02 | AU126: 0.02 | AV126: 0.02 | AW126: 0.02 | AX126: 0.02
E127: LIBOR: real | F127: 0 | G127: % real
E128: LIBOR: nominal | F128: =( 1 + F126 ) * ( 1 + F127 ) - 1 -> 0.02 | G128: %
E130: ISA Discount Rate | F130: 0.1 | G130: %
E131: Collector Shareholder Discount Rate | F131: 0.1 | G131: %
E132: Sponsoring State Discount Rate | F132: 0.1 | G132: %
E134: Fixed Processor IRR | F134: 0.1 | G134: %
E135: % of fixed Processor IRR | F135: 0.5
A137: Technical parameters
E138: Model check tolerance level | F138: 1e-06 | G138: Tolerance
E139: one hundred | F139: 100 | G139: Constant
E140: one | F140: 1 | G140: Constant
A141: Global labels
E143: Label: yes | F143: Yes | G143: Label
E144: Label: no | F144: No | G144: Label
E145: Label: Gross | F145: Gross
E146: Label: Net | F146: Net
A148: END MODEL

Sheet T&E
A1: =RIGHT( CELL("filename",$A$1), LEN( CELL("filename",$A$1)) - SEARCH("]", CELL("filename",$A$1))) -> T&E | I1: Model counter | K1: =K9 -> 1 | L1: =L9 -> 2 | M1: 3 | N1: 4 | O1: 5 | P1: 6 | Q1: 7 | R1: 8 | S1: 9 | T1: 10 | U1: 11 | V1: 12 | W1: 13 | X1: 14 | Y1: 15 | Z1: 16 | AA1: 17 | AB1: 18 | AC1: 19 | AD1: 20 | AE1: 21 | AF1: 22 | AG1: 23 | AH1: 24 | AI1: 25 | AJ1: 26 | AK1: 27 | AL1: 28 | AM1: 29 | AN1: 30 | AO1: 31 | AP1: 32 | AQ1: 33 | AR1: 34 | AS1: 35 | AT1: 36 | AU1: 37
E2: Row description | F2: Constant | G2: Units | H2: Comments | I2: Total
A4: Flags and Counters
B6: Project flags and counters
D8: Project model counter
E9: Project model counter | G9: year # | K9: =J9+1 -> 1 | L9: =K9+1 -> 2 | M9: 3 | N9: 4 | O9: 5 | P9: 6 | Q9: 7 | R9: 8 | S9: 9 | T9: 10 | U9: 11 | V9: 12 | W9: 13 | X9: 14 | Y9: 15 | Z9: 16 | AA9: 17 | AB9: 18 | AC9: 19 | AD9: 20 | AE9: 21 | AF9: 22 | AG9: 23 | AH9: 24 | AI9: 25 | AJ9: 26 | AK9: 27 | AL9: 28 | AM9: 29 | AN9: 30 | AO9: 31 | AP9: 32 | AQ9: 33 | AR9: 34 | AS9: 35 | AT9: 36 | AU9: 37
C11: Pre-Operation phase:
D12: Prefeasibility period flag
E13: =Inputs!E10 -> Pre Feasibility - start | F13: =Inputs!F10 -> 1 | G13: =Inputs!G10 -> year
E14: =Inputs!E11 -> Pre Feasibility - end | F14: =Inputs!F11 -> 6 | G14: =Inputs!G11 -> year
E15: Pre Feasibility period flag | G15: flag | I15: =SUM(K15:AU15) -> 6 | K15: =IF(K$9<$F13,0,IF(K$9>$F14,0,1)) -> 1 | L15: 1 | M15: 1 | N15: 1 | O15: 1 | P15: 1 | Q15: 0 | R15: 0 | S15: 0 | T15: 0 | U15: 0 | V15: 0 | W15: 0 | X15: 0 | Y15: 0 | Z15: 0 | AA15: 0 | AB15: 0 | AC15: 0 | AD15: 0 | AE15: 0 | AF15: 0 | AG15: 0 | AH15: 0 | AI15: 0 | AJ15: 0 | AK15: 0 | AL15: 0 | AM15: 0 | AN15: 0 | AO15: 0 | AP15: 0 | AQ15: 0 | AR15: 0 | AS15: 0 | AT15: 0 | AU15: 0
D17: Feasibility period flag
E18: =Inputs!E12 -> Feasibility - start | F18: =Inputs!F12 -> 4 | G18: =Inputs!G12 -> year
E19: =Inputs!E13 -> Feasibility - end | F19: =Inputs!F13 -> 7 | G19: =Inputs!G13 -> year
E20: Feasibility period flag | G20: flag | I20: =SUM(K20:AU20) -> 4 | K20: =IF(K$9<$F18,0,IF(K$9>$F19,0,1)) -> 0 | L20: 0 | M20: 0 | N20: 1 | O20: 1 | P20: 1 | Q20: 1 | R20: 0 | S20: 0 | T20: 0 | U20: 0 | V20: 0 | W20: 0 | X20: 0 | Y20: 0 | Z20: 0 | AA20: 0 | AB20: 0 | AC20: 0 | AD20: 0 | AE20: 0 | AF20: 0 | AG20: 0 | AH20: 0 | AI20: 0 | AJ20: 0 | AK20: 0 | AL20: 0 | AM20: 0 | AN20: 0 | AO20: 0 | AP20: 0 | AQ20: 0 | AR20: 0 | AS20: 0 | AT20: 0 | AU20: 0
D22: Design and build period flag
E23: =Inputs!E14 -> Design and Build - start | F23: =Inputs!F14 -> 8 | G23: =Inputs!G14 -> year
E24: =Inputs!E15 -> Design and Build - end | F24: =Inputs!F15 -> 11 | G24: =Inputs!G15 -> year
E25: Design and build period flag | G25: flag | I25: =SUM(K25:AU25) -> 4 | K25: =IF(K$9<$F23,0,IF(K$9>$F24,0,1)) -> 0 | L25: 0 | M25: 0 | N25: 0 | O25: 0 | P25: 0 | Q25: 0 | R25: 1 | S25: 1 | T25: 1 | U25: 1 | V25: 0 | W25: 0 | X25: 0 | Y25: 0 | Z25: 0 | AA25: 0 | AB25: 0 | AC25: 0 | AD25: 0 | AE25: 0 | AF25: 0 | AG25: 0 | AH25: 0 | AI25: 0 | AJ25: 0 | AK25: 0 | AL25: 0 | AM25: 0 | AN25: 0 | AO25: 0 | AP25: 0 | AQ25: 0 | AR25: 0 | AS25: 0 | AT25: 0 | AU25: 0
C27: Operation phase:
D28: Ramp up period flag
E29: =Inputs!E16 -> Ramp Up - start | F29: =Inputs!F16 -> 12 | G29: =Inputs!G16 -> year
E30: =Inputs!E17 -> Ramp Up - end | F30: =Inputs!F17 -> 13 | G30: =Inputs!G17 -> year
E31: Ramp up period flag | G31: flag | I31: =SUM(K31:AU31) -> 2 | K31: =IF(K$9<$F29,0,IF(K$9>$F30,0,1)) -> 0 | L31: 0 | M31: 0 | N31: 0 | O31: 0 | P31: 0 | Q31: 0 | R31: 0 | S31: 0 | T31: 0 | U31: 0 | V31: 1 | W31: 1 | X31: 0 | Y31: 0 | Z31: 0 | AA31: 0 | AB31: 0 | AC31: 0 | AD31: 0 | AE31: 0 | AF31: 0 | AG31: 0 | AH31: 0 | AI31: 0 | AJ31: 0 | AK31: 0 | AL31: 0 | AM31: 0 | AN31: 0 | AO31: 0 | AP31: 0 | AQ31: 0 | AR31: 0 | AS31: 0 | AT31: 0 | AU31: 0
D33: Full Operation period flag
E34: =Inputs!E18 -> Full Operation - start | F34: =Inputs!F18 -> 14 | G34: =Inputs!G18 -> year
E35: =Inputs!E19 -> Full Operation - end | F35: =Inputs!F19 -> 36 | G35: =Inputs!G19 -> year
E36: Full Operation period flag | G36: flag | I36: =SUM(K36:AU36) -> 23 | K36: =IF(K$9<$F34,0,IF(K$9>$F35,0,1)) -> 0 | L36: 0 | M36: 0 | N36: 0 | O36: 0 | P36: 0 | Q36: 0 | R36: 0 | S36: 0 | T36: 0 | U36: 0 | V36: 0 | W36: 0 | X36: 1 | Y36: 1 | Z36: 1 | AA36: 1 | AB36: 1 | AC36: 1 | AD36: 1 | AE36: 1 | AF36: 1 | AG36: 1 | AH36: 1 | AI36: 1 | AJ36: 1 | AK36: 1 | AL36: 1 | AM36: 1 | AN36: 1 | AO36: 1 | AP36: 1 | AQ36: 1 | AR36: 1 | AS36: 1 | AT36: 1 | AU36: 0
D38: Exploration period flag
E39: Exploration period flag | G39: flag | I39: =SUM(K39:AU39) -> 7 | K39: =IF(K15+K20>0,1,0) -> 1 | L39: 1 | M39: 1 | N39: 1 | O39: 1 | P39: 1 | Q39: 1 | R39: 0 | S39: 0 | T39: 0 | U39: 0 | V39: 0 | W39: 0 | X39: 0 | Y39: 0 | Z39: 0 | AA39: 0 | AB39: 0 | AC39: 0 | AD39: 0 | AE39: 0 | AF39: 0 | AG39: 0 | AH39: 0 | AI39: 0 | AJ39: 0 | AK39: 0 | AL39: 0 | AM39: 0 | AN39: 0 | AO39: 0 | AP39: 0 | AQ39: 0 | AR39: 0 | AS39: 0 | AT39: 0 | AU39: 0
D40: Exploitation period flag
E41: Exploitation period flag | G41: flag | I41: =SUM(K41:AU41) -> 29 | K41: =IF(K25+K31+K36>0,1,0) -> 0 | L41: 0 | M41: 0 | N41: 0 | O41: 0 | P41: 0 | Q41: 0 | R41: 1 | S41: 1 | T41: 1 | U41: 1 | V41: 1 | W41: 1 | X41: 1 | Y41: 1 | Z41: 1 | AA41: 1 | AB41: 1 | AC41: 1 | AD41: 1 | AE41: 1 | AF41: 1 | AG41: 1 | AH41: 1 | AI41: 1 | AJ41: 1 | AK41: 1 | AL41: 1 | AM41: 1 | AN41: 1 | AO41: 1 | AP41: 1 | AQ41: 1 | AR41: 1 | AS41: 1 | AT41: 1 | AU41: 0
D42: Production period flag
E43: Production period flag | G43: flag | I43: =SUM(K43:AU43) -> 25 | K43: =IF(K31+K36>0,1,0) -> 0 | L43: 0 | M43: 0 | N43: 0 | O43: 0 | P43: 0 | Q43: 0 | R43: 0 | S43: 0 | T43: 0 | U43: 0 | V43: 1 | W43: 1 | X43: 1 | Y43: 1 | Z43: 1 | AA43: 1 | AB43: 1 | AC43: 1 | AD43: 1 | AE43: 1 | AF43: 1 | AG43: 1 | AH43: 1 | AI43: 1 | AJ43: 1 | AK43: 1 | AL43: 1 | AM43: 1 | AN43: 1 | AO43: 1 | AP43: 1 | AQ43: 1 | AR43: 1 | AS43: 1 | AT43: 1 | AU43: 0
D45: Capital maintenance expenditure interval flag
E46: Collectors - maintenance flag | F46: =Inputs!F95 -> 2 | G46: years | H46: interval | I46: =SUM(K46:AU46) -> 12 | K46: =IF(OR(K$9<Inputs!$F$16,K$9>Inputs!$F$19),0,IF(INT(('T&E'!K$9-Inputs!$F$15)/'T&E'!$F46)=('T&E'!K$9-Inputs!$F$15)/'T&E'!$F46,1,0)) -> 0 | L46: =IF(OR(L$9<Inputs!$F$16,L$9>Inputs!$F$19),0,IF(INT(('T&E'!L$9-Inputs!$F$15)/'T&E'!$F46)=('T&E'!L$9-Inputs!$F$15)/'T&E'!$F46,1,0)) -> 0 | M46: =IF(OR(M$9<Inputs!$F$16,M$9>Inputs!$F$19),0,IF(INT(('T&E'!M$9-Inputs!$F$15)/'T&E'!$F46)=('T&E'!M$9-Inputs!$F$15)/'T&E'!$F46,1,0)) -> 0 | N46: =IF(OR(N$9<Inputs!$F$16,N$9>Inputs!$F$19),0,IF(INT(('T&E'!N$9-Inputs!$F$15)/'T&E'!$F46)=('T&E'!N$9-Inputs!$F$15)/'T&E'!$F46,1,0)) -> 0 | O46: =IF(OR(O$9<Inputs!$F$16,O$9>Inputs!$F$19),0,IF(INT(('T&E'!O$9-Inputs!$F$15)/'T&E'!$F46)=('T&E'!O$9-Inputs!$F$15)/'T&E'!$F46,1,0)) -> 0 | P46: =IF(OR(P$9<Inputs!$F$16,P$9>Inputs!$F$19),0,IF(INT(('T&E'!P$9-Inputs!$F$15)/'T&E'!$F46)=('T&E'!P$9-Inputs!$F$15)/'T&E'!$F46,1,0)) -> 0 | Q46: =IF(OR(Q$9<Inputs!$F$16,Q$9>Inputs!$F$19),0,IF(INT(('T&E'!Q$9-Inputs!$F$15)/'T&E'!$F46)=('T&E'!Q$9-Inputs!$F$15)/'T&E'!$F46,1,0)) -> 0 | R46: =IF(OR(R$9<Inputs!$F$16,R$9>Inputs!$F$19),0,IF(INT(('T&E'!R$9-Inputs!$F$15)/'T&E'!$F46)=('T&E'!R$9-Inputs!$F$15)/'T&E'!$F46,1,0)) -> 0 | S46: =IF(OR(S$9<Inputs!$F$16,S$9>Inputs!$F$19),0,IF(INT(('T&E'!S$9-Inputs!$F$15)/'T&E'!$F46)=('T&E'!S$9-Inputs!$F$15)/'T&E'!$F46,1,0)) -> 0 | T46: =IF(OR(T$9<Inputs!$F$16,T$9>Inputs!$F$19),0,IF(INT(('T&E'!T$9-Inputs!$F$15)/'T&E'!$F46)=('T&E'!T$9-Inputs!$F$15)/'T&E'!$F46,1,0)) -> 0 | U46: =IF(OR(U$9<Inputs!$F$16,U$9>Inputs!$F$19),0,IF(INT(('T&E'!U$9-Inputs!$F$15)/'T&E'!$F46)=('T&E'!U$9-Inputs!$F$15)/'T&E'!$F46,1,0)) -> 0 | V46: =IF(OR(V$9<Inputs!$F$16,V$9>Inputs!$F$19),0,IF(INT(('T&E'!V$9-Inputs!$F$15)/'T&E'!$F46)=('T&E'!V$9-Inputs!$F$15)/'T&E'!$F46,1,0)) -> 0 | W46: =IF(OR(W$9<Inputs!$F$16,W$9>Inputs!$F$19),0,IF(INT(('T&E'!W$9-Inputs!$F$15)/'T&E'!$F46)=('T&E'!W$9-Inputs!$F$15)/'T&E'!$F46,1,0)) -> 1 | X46: =IF(OR(X$9<Inputs!$F$16,X$9>Inputs!$F$19),0,IF(INT(('T&E'!X$9-Inputs!$F$15)/'T&E'!$F46)=('T&E'!X$9-Inputs!$F$15)/'T&E'!$F46,1,0)) -> 0 | Y46: =IF(OR(Y$9<Inputs!$F$16,Y$9>Inputs!$F$19),0,IF(INT(('T&E'!Y$9-Inputs!$F$15)/'T&E'!$F46)=('T&E'!Y$9-Inputs!$F$15)/'T&E'!$F46,1,0)) -> 1 | Z46: =IF(OR(Z$9<Inputs!$F$16,Z$9>Inputs!$F$19),0,IF(INT(('T&E'!Z$9-Inputs!$F$15)/'T&E'!$F46)=('T&E'!Z$9-Inputs!$F$15)/'T&E'!$F46,1,0)) -> 0 | AA46: =IF(OR(AA$9<Inputs!$F$16,AA$9>Inputs!$F$19),0,IF(INT(('T&E'!AA$9-Inputs!$F$15)/'T&E'!$F46)=('T&E'!AA$9-Inputs!$F$15)/'T&E'!$F46,1,0)) -> 1 | AB46: =IF(OR(AB$9<Inputs!$F$16,AB$9>Inputs!$F$19),0,IF(INT(('T&E'!AB$9-Inputs!$F$15)/'T&E'!$F46)=('T&E'!AB$9-Inputs!$F$15)/'T&E'!$F46,1,0)) -> 0 | AC46: =IF(OR(AC$9<Inputs!$F$16,AC$9>Inputs!$F$19),0,IF(INT(('T&E'!AC$9-Inputs!$F$15)/'T&E'!$F46)=('T&E'!AC$9-Inputs!$F$15)/'T&E'!$F46,1,0)) -> 1 | AD46: =IF(OR(AD$9<Inputs!$F$16,AD$9>Inputs!$F$19),0,IF(INT(('T&E'!AD$9-Inputs!$F$15)/'T&E'!$F46)=('T&E'!AD$9-Inputs!$F$15)/'T&E'!$F46,1,0)) -> 0 | AE46: =IF(OR(AE$9<Inputs!$F$16,AE$9>Inputs!$F$19),0,IF(INT(('T&E'!AE$9-Inputs!$F$15)/'T&E'!$F46)=('T&E'!AE$9-Inputs!$F$15)/'T&E'!$F46,1,0)) -> 1 | AF46: =IF(OR(AF$9<Inputs!$F$16,AF$9>Inputs!$F$19),0,IF(INT(('T&E'!AF$9-Inputs!$F$15)/'T&E'!$F46)=('T&E'!AF$9-Inputs!$F$15)/'T&E'!$F46,1,0)) -> 0 | AG46: =IF(OR(AG$9<Inputs!$F$16,AG$9>Inputs!$F$19),0,IF(INT(('T&E'!AG$9-Inputs!$F$15)/'T&E'!$F46)=('T&E'!AG$9-Inputs!$F$15)/'T&E'!$F46,1,0)) -> 1 | AH46: =IF(OR(AH$9<Inputs!$F$16,AH$9>Inputs!$F$19),0,IF(INT(('T&E'!AH$9-Inputs!$F$15)/'T&E'!$F46)=('T&E'!AH$9-Inputs!$F$15)/'T&E'!$F46,1,0)) -> 0 | AI46: =IF(OR(AI$9<Inputs!$F$16,AI$9>Inputs!$F$19),0,IF(INT(('T&E'!AI$9-Inputs!$F$15)/'T&E'!$F46)=('T&E'!AI$9-Inputs!$F$15)/'T&E'!$F46,1,0)) -> 1 | AJ46: =IF(OR(AJ$9<Inputs!$F$16,AJ$9>Inputs!$F$19),0,IF(INT(('T&E'!AJ$9-Inputs!$F$15)/'T&E'!$F46)=('T&E'!AJ$9-Inputs!$F$15)/'T&E'!$F46,1,0)) -> 0 | AK46: =IF(OR(AK$9<Inputs!$F$16,AK$9>Inputs!$F$19),0,IF(INT(('T&E'!AK$9-Inputs!$F$15)/'T&E'!$F46)=('T&E'!AK$9-Inputs!$F$15)/'T&E'!$F46,1,0)) -> 1 | AL46: =IF(OR(AL$9<Inputs!$F$16,AL$9>Inputs!$F$19),0,IF(INT(('T&E'!AL$9-Inputs!$F$15)/'T&E'!$F46)=('T&E'!AL$9-Inputs!$F$15)/'T&E'!$F46,1,0)) -> 0 | AM46: =IF(OR(AM$9<Inputs!$F$16,AM$9>Inputs!$F$19),0,IF(INT(('T&E'!AM$9-Inputs!$F$15)/'T&E'!$F46)=('T&E'!AM$9-Inputs!$F$15)/'T&E'!$F46,1,0)) -> 1 | AN46: =IF(OR(AN$9<Inputs!$F$16,AN$9>Inputs!$F$19),0,IF(INT(('T&E'!AN$9-Inputs!$F$15)/'T&E'!$F46)=('T&E'!AN$9-Inputs!$F$15)/'T&E'!$F46,1,0)) -> 0 | AO46: =IF(OR(AO$9<Inputs!$F$16,AO$9>Inputs!$F$19),0,IF(INT(('T&E'!AO$9-Inputs!$F$15)/'T&E'!$F46)=('T&E'!AO$9-Inputs!$F$15)/'T&E'!$F46,1,0)) -> 1 | AP46: =IF(OR(AP$9<Inputs!$F$16,AP$9>Inputs!$F$19),0,IF(INT(('T&E'!AP$9-Inputs!$F$15)/'T&E'!$F46)=('T&E'!AP$9-Inputs!$F$15)/'T&E'!$F46,1,0)) -> 0 | AQ46: =IF(OR(AQ$9<Inputs!$F$16,AQ$9>Inputs!$F$19),0,IF(INT(('T&E'!AQ$9-Inputs!$F$15)/'T&E'!$F46)=('T&E'!AQ$9-Inputs!$F$15)/'T&E'!$F46,1,0)) -> 1 | AR46: =IF(OR(AR$9<Inputs!$F$16,AR$9>Inputs!$F$19),0,IF(INT(('T&E'!AR$9-Inputs!$F$15)/'T&E'!$F46)=('T&E'!AR$9-Inputs!$F$15)/'T&E'!$F46,1,0)) -> 0 | AS46: =IF(OR(AS$9<Inputs!$F$16,AS$9>Inputs!$F$19),0,IF(INT(('T&E'!AS$9-Inputs!$F$15)/'T&E'!$F46)=('T&E'!AS$9-Inputs!$F$15)/'T&E'!$F46,1,0)) -> 1 | AT46: =IF(OR(AT$9<Inputs!$F$16,AT$9>Inputs!$F$19),0,IF(INT(('T&E'!AT$9-Inputs!$F$15)/'T&E'!$F46)=('T&E'!AT$9-Inputs!$F$15)/'T&E'!$F46,1,0)) -> 0 | AU46: =IF(OR(AU$9<Inputs!$F$16,AU$9>Inputs!$F$19),0,IF(INT(('T&E'!AU$9-Inputs!$F$15)/'T&E'!$F46)=('T&E'!AU$9-Inputs!$F$15)/'T&E'!$F46,1,0)) -> 0
E47: Risers - maintenance flag | F47: =Inputs!F96 -> 5 | G47: years | H47: interval | I47: =SUM(K47:AU47) -> 5 | K47: =IF(OR(K$9<Inputs!$F$16,K$9>Inputs!$F$19),0,IF(INT(('T&E'!K$9-Inputs!$F$15)/'T&E'!$F47)=('T&E'!K$9-Inputs!$F$15)/'T&E'!$F47,1,0)) -> 0 | L47: =IF(OR(L$9<Inputs!$F$16,L$9>Inputs!$F$19),0,IF(INT(('T&E'!L$9-Inputs!$F$15)/'T&E'!$F47)=('T&E'!L$9-Inputs!$F$15)/'T&E'!$F47,1,0)) -> 0 | M47: =IF(OR(M$9<Inputs!$F$16,M$9>Inputs!$F$19),0,IF(INT(('T&E'!M$9-Inputs!$F$15)/'T&E'!$F47)=('T&E'!M$9-Inputs!$F$15)/'T&E'!$F47,1,0)) -> 0 | N47: =IF(OR(N$9<Inputs!$F$16,N$9>Inputs!$F$19),0,IF(INT(('T&E'!N$9-Inputs!$F$15)/'T&E'!$F47)=('T&E'!N$9-Inputs!$F$15)/'T&E'!$F47,1,0)) -> 0 | O47: =IF(OR(O$9<Inputs!$F$16,O$9>Inputs!$F$19),0,IF(INT(('T&E'!O$9-Inputs!$F$15)/'T&E'!$F47)=('T&E'!O$9-Inputs!$F$15)/'T&E'!$F47,1,0)) -> 0 | P47: =IF(OR(P$9<Inputs!$F$16,P$9>Inputs!$F$19),0,IF(INT(('T&E'!P$9-Inputs!$F$15)/'T&E'!$F47)=('T&E'!P$9-Inputs!$F$15)/'T&E'!$F47,1,0)) -> 0 | Q47: =IF(OR(Q$9<Inputs!$F$16,Q$9>Inputs!$F$19),0,IF(INT(('T&E'!Q$9-Inputs!$F$15)/'T&E'!$F47)=('T&E'!Q$9-Inputs!$F$15)/'T&E'!$F47,1,0)) -> 0 | R47: =IF(OR(R$9<Inputs!$F$16,R$9>Inputs!$F$19),0,IF(INT(('T&E'!R$9-Inputs!$F$15)/'T&E'!$F47)=('T&E'!R$9-Inputs!$F$15)/'T&E'!$F47,1,0)) -> 0 | S47: =IF(OR(S$9<Inputs!$F$16,S$9>Inputs!$F$19),0,IF(INT(('T&E'!S$9-Inputs!$F$15)/'T&E'!$F47)=('T&E'!S$9-Inputs!$F$15)/'T&E'!$F47,1,0)) -> 0 | T47: =IF(OR(T$9<Inputs!$F$16,T$9>Inputs!$F$19),0,IF(INT(('T&E'!T$9-Inputs!$F$15)/'T&E'!$F47)=('T&E'!T$9-Inputs!$F$15)/'T&E'!$F47,1,0)) -> 0 | U47: =IF(OR(U$9<Inputs!$F$16,U$9>Inputs!$F$19),0,IF(INT(('T&E'!U$9-Inputs!$F$15)/'T&E'!$F47)=('T&E'!U$9-Inputs!$F$15)/'T&E'!$F47,1,0)) -> 0 | V47: =IF(OR(V$9<Inputs!$F$16,V$9>Inputs!$F$19),0,IF(INT(('T&E'!V$9-Inputs!$F$15)/'T&E'!$F47)=('T&E'!V$9-Inputs!$F$15)/'T&E'!$F47,1,0)) -> 0 | W47: =IF(OR(W$9<Inputs!$F$16,W$9>Inputs!$F$19),0,IF(INT(('T&E'!W$9-Inputs!$F$15)/'T&E'!$F47)=('T&E'!W$9-Inputs!$F$15)/'T&E'!$F47,1,0)) -> 0 | X47: =IF(OR(X$9<Inputs!$F$16,X$9>Inputs!$F$19),0,IF(INT(('T&E'!X$9-Inputs!$F$15)/'T&E'!$F47)=('T&E'!X$9-Inputs!$F$15)/'T&E'!$F47,1,0)) -> 0 | Y47: =IF(OR(Y$9<Inputs!$F$16,Y$9>Inputs!$F$19),0,IF(INT(('T&E'!Y$9-Inputs!$F$15)/'T&E'!$F47)=('T&E'!Y$9-Inputs!$F$15)/'T&E'!$F47,1,0)) -> 0 | Z47: =IF(OR(Z$9<Inputs!$F$16,Z$9>Inputs!$F$19),0,IF(INT(('T&E'!Z$9-Inputs!$F$15)/'T&E'!$F47)=('T&E'!Z$9-Inputs!$F$15)/'T&E'!$F47,1,0)) -> 1 | AA47: =IF(OR(AA$9<Inputs!$F$16,AA$9>Inputs!$F$19),0,IF(INT(('T&E'!AA$9-Inputs!$F$15)/'T&E'!$F47)=('T&E'!AA$9-Inputs!$F$15)/'T&E'!$F47,1,0)) -> 0 | AB47: =IF(OR(AB$9<Inputs!$F$16,AB$9>Inputs!$F$19),0,IF(INT(('T&E'!AB$9-Inputs!$F$15)/'T&E'!$F47)=('T&E'!AB$9-Inputs!$F$15)/'T&E'!$F47,1,0)) -> 0 | AC47: =IF(OR(AC$9<Inputs!$F$16,AC$9>Inputs!$F$19),0,IF(INT(('T&E'!AC$9-Inputs!$F$15)/'T&E'!$F47)=('T&E'!AC$9-Inputs!$F$15)/'T&E'!$F47,1,0)) -> 0 | AD47: =IF(OR(AD$9<Inputs!$F$16,AD$9>Inputs!$F$19),0,IF(INT(('T&E'!AD$9-Inputs!$F$15)/'T&E'!$F47)=('T&E'!AD$9-Inputs!$F$15)/'T&E'!$F47,1,0)) -> 0 | AE47: =IF(OR(AE$9<Inputs!$F$16,AE$9>Inputs!$F$19),0,IF(INT(('T&E'!AE$9-Inputs!$F$15)/'T&E'!$F47)=('T&E'!AE$9-Inputs!$F$15)/'T&E'!$F47,1,0)) -> 1 | AF47: =IF(OR(AF$9<Inputs!$F$16,AF$9>Inputs!$F$19),0,IF(INT(('T&E'!AF$9-Inputs!$F$15)/'T&E'!$F47)=('T&E'!AF$9-Inputs!$F$15)/'T&E'!$F47,1,0)) -> 0 | AG47: =IF(OR(AG$9<Inputs!$F$16,AG$9>Inputs!$F$19),0,IF(INT(('T&E'!AG$9-Inputs!$F$15)/'T&E'!$F47)=('T&E'!AG$9-Inputs!$F$15)/'T&E'!$F47,1,0)) -> 0 | AH47: =IF(OR(AH$9<Inputs!$F$16,AH$9>Inputs!$F$19),0,IF(INT(('T&E'!AH$9-Inputs!$F$15)/'T&E'!$F47)=('T&E'!AH$9-Inputs!$F$15)/'T&E'!$F47,1,0)) -> 0 | AI47: =IF(OR(AI$9<Inputs!$F$16,AI$9>Inputs!$F$19),0,IF(INT(('T&E'!AI$9-Inputs!$F$15)/'T&E'!$F47)=('T&E'!AI$9-Inputs!$F$15)/'T&E'!$F47,1,0)) -> 0 | AJ47: =IF(OR(AJ$9<Inputs!$F$16,AJ$9>Inputs!$F$19),0,IF(INT(('T&E'!AJ$9-Inputs!$F$15)/'T&E'!$F47)=('T&E'!AJ$9-Inputs!$F$15)/'T&E'!$F47,1,0)) -> 1 | AK47: =IF(OR(AK$9<Inputs!$F$16,AK$9>Inputs!$F$19),0,IF(INT(('T&E'!AK$9-Inputs!$F$15)/'T&E'!$F47)=('T&E'!AK$9-Inputs!$F$15)/'T&E'!$F47,1,0)) -> 0 | AL47: =IF(OR(AL$9<Inputs!$F$16,AL$9>Inputs!$F$19),0,IF(INT(('T&E'!AL$9-Inputs!$F$15)/'T&E'!$F47)=('T&E'!AL$9-Inputs!$F$15)/'T&E'!$F47,1,0)) -> 0 | AM47: =IF(OR(AM$9<Inputs!$F$16,AM$9>Inputs!$F$19),0,IF(INT(('T&E'!AM$9-Inputs!$F$15)/'T&E'!$F47)=('T&E'!AM$9-Inputs!$F$15)/'T&E'!$F47,1,0)) -> 0 | AN47: =IF(OR(AN$9<Inputs!$F$16,AN$9>Inputs!$F$19),0,IF(INT(('T&E'!AN$9-Inputs!$F$15)/'T&E'!$F47)=('T&E'!AN$9-Inputs!$F$15)/'T&E'!$F47,1,0)) -> 0 | AO47: =IF(OR(AO$9<Inputs!$F$16,AO$9>Inputs!$F$19),0,IF(INT(('T&E'!AO$9-Inputs!$F$15)/'T&E'!$F47)=('T&E'!AO$9-Inputs!$F$15)/'T&E'!$F47,1,0)) -> 1 | AP47: =IF(OR(AP$9<Inputs!$F$16,AP$9>Inputs!$F$19),0,IF(INT(('T&E'!AP$9-Inputs!$F$15)/'T&E'!$F47)=('T&E'!AP$9-Inputs!$F$15)/'T&E'!$F47,1,0)) -> 0 | AQ47: =IF(OR(AQ$9<Inputs!$F$16,AQ$9>Inputs!$F$19),0,IF(INT(('T&E'!AQ$9-Inputs!$F$15)/'T&E'!$F47)=('T&E'!AQ$9-Inputs!$F$15)/'T&E'!$F47,1,0)) -> 0 | AR47: =IF(OR(AR$9<Inputs!$F$16,AR$9>Inputs!$F$19),0,IF(INT(('T&E'!AR$9-Inputs!$F$15)/'T&E'!$F47)=('T&E'!AR$9-Inputs!$F$15)/'T&E'!$F47,1,0)) -> 0 | AS47: =IF(OR(AS$9<Inputs!$F$16,AS$9>Inputs!$F$19),0,IF(INT(('T&E'!AS$9-Inputs!$F$15)/'T&E'!$F47)=('T&E'!AS$9-Inputs!$F$15)/'T&E'!$F47,1,0)) -> 0 | AT47: =IF(OR(AT$9<Inputs!$F$16,AT$9>Inputs!$F$19),0,IF(INT(('T&E'!AT$9-Inputs!$F$15)/'T&E'!$F47)=('T&E'!AT$9-Inputs!$F$15)/'T&E'!$F47,1,0)) -> 1 | AU47: =IF(OR(AU$9<Inputs!$F$16,AU$9>Inputs!$F$19),0,IF(INT(('T&E'!AU$9-Inputs!$F$15)/'T&E'!$F47)=('T&E'!AU$9-Inputs!$F$15)/'T&E'!$F47,1,0)) -> 0
E48: Moorings - maintenance flag | F48: =Inputs!F97 -> 5 | G48: years | H48: interval | I48: =SUM(K48:AU48) -> 5 | K48: =IF(OR(K$9<Inputs!$F$16,K$9>Inputs!$F$19),0,IF(INT(('T&E'!K$9-Inputs!$F$15)/'T&E'!$F48)=('T&E'!K$9-Inputs!$F$15)/'T&E'!$F48,1,0)) -> 0 | L48: =IF(OR(L$9<Inputs!$F$16,L$9>Inputs!$F$19),0,IF(INT(('T&E'!L$9-Inputs!$F$15)/'T&E'!$F48)=('T&E'!L$9-Inputs!$F$15)/'T&E'!$F48,1,0)) -> 0 | M48: =IF(OR(M$9<Inputs!$F$16,M$9>Inputs!$F$19),0,IF(INT(('T&E'!M$9-Inputs!$F$15)/'T&E'!$F48)=('T&E'!M$9-Inputs!$F$15)/'T&E'!$F48,1,0)) -> 0 | N48: =IF(OR(N$9<Inputs!$F$16,N$9>Inputs!$F$19),0,IF(INT(('T&E'!N$9-Inputs!$F$15)/'T&E'!$F48)=('T&E'!N$9-Inputs!$F$15)/'T&E'!$F48,1,0)) -> 0 | O48: =IF(OR(O$9<Inputs!$F$16,O$9>Inputs!$F$19),0,IF(INT(('T&E'!O$9-Inputs!$F$15)/'T&E'!$F48)=('T&E'!O$9-Inputs!$F$15)/'T&E'!$F48,1,0)) -> 0 | P48: =IF(OR(P$9<Inputs!$F$16,P$9>Inputs!$F$19),0,IF(INT(('T&E'!P$9-Inputs!$F$15)/'T&E'!$F48)=('T&E'!P$9-Inputs!$F$15)/'T&E'!$F48,1,0)) -> 0 | Q48: =IF(OR(Q$9<Inputs!$F$16,Q$9>Inputs!$F$19),0,IF(INT(('T&E'!Q$9-Inputs!$F$15)/'T&E'!$F48)=('T&E'!Q$9-Inputs!$F$15)/'T&E'!$F48,1,0)) -> 0 | R48: =IF(OR(R$9<Inputs!$F$16,R$9>Inputs!$F$19),0,IF(INT(('T&E'!R$9-Inputs!$F$15)/'T&E'!$F48)=('T&E'!R$9-Inputs!$F$15)/'T&E'!$F48,1,0)) -> 0 | S48: =IF(OR(S$9<Inputs!$F$16,S$9>Inputs!$F$19),0,IF(INT(('T&E'!S$9-Inputs!$F$15)/'T&E'!$F48)=('T&E'!S$9-Inputs!$F$15)/'T&E'!$F48,1,0)) -> 0 | T48: =IF(OR(T$9<Inputs!$F$16,T$9>Inputs!$F$19),0,IF(INT(('T&E'!T$9-Inputs!$F$15)/'T&E'!$F48)=('T&E'!T$9-Inputs!$F$15)/'T&E'!$F48,1,0)) -> 0 | U48: =IF(OR(U$9<Inputs!$F$16,U$9>Inputs!$F$19),0,IF(INT(('T&E'!U$9-Inputs!$F$15)/'T&E'!$F48)=('T&E'!U$9-Inputs!$F$15)/'T&E'!$F48,1,0)) -> 0 | V48: =IF(OR(V$9<Inputs!$F$16,V$9>Inputs!$F$19),0,IF(INT(('T&E'!V$9-Inputs!$F$15)/'T&E'!$F48)=('T&E'!V$9-Inputs!$F$15)/'T&E'!$F48,1,0)) -> 0 | W48: =IF(OR(W$9<Inputs!$F$16,W$9>Inputs!$F$19),0,IF(INT(('T&E'!W$9-Inputs!$F$15)/'T&E'!$F48)=('T&E'!W$9-Inputs!$F$15)/'T&E'!$F48,1,0)) -> 0 | X48: =IF(OR(X$9<Inputs!$F$16,X$9>Inputs!$F$19),0,IF(INT(('T&E'!X$9-Inputs!$F$15)/'T&E'!$F48)=('T&E'!X$9-Inputs!$F$15)/'T&E'!$F48,1,0)) -> 0 | Y48: =IF(OR(Y$9<Inputs!$F$16,Y$9>Inputs!$F$19),0,IF(INT(('T&E'!Y$9-Inputs!$F$15)/'T&E'!$F48)=('T&E'!Y$9-Inputs!$F$15)/'T&E'!$F48,1,0)) -> 0 | Z48: =IF(OR(Z$9<Inputs!$F$16,Z$9>Inputs!$F$19),0,IF(INT(('T&E'!Z$9-Inputs!$F$15)/'T&E'!$F48)=('T&E'!Z$9-Inputs!$F$15)/'T&E'!$F48,1,0)) -> 1 | AA48: =IF(OR(AA$9<Inputs!$F$16,AA$9>Inputs!$F$19),0,IF(INT(('T&E'!AA$9-Inputs!$F$15)/'T&E'!$F48)=('T&E'!AA$9-Inputs!$F$15)/'T&E'!$F48,1,0)) -> 0 | AB48: =IF(OR(AB$9<Inputs!$F$16,AB$9>Inputs!$F$19),0,IF(INT(('T&E'!AB$9-Inputs!$F$15)/'T&E'!$F48)=('T&E'!AB$9-Inputs!$F$15)/'T&E'!$F48,1,0)) -> 0 | AC48: =IF(OR(AC$9<Inputs!$F$16,AC$9>Inputs!$F$19),0,IF(INT(('T&E'!AC$9-Inputs!$F$15)/'T&E'!$F48)=('T&E'!AC$9-Inputs!$F$15)/'T&E'!$F48,1,0)) -> 0 | AD48: =IF(OR(AD$9<Inputs!$F$16,AD$9>Inputs!$F$19),0,IF(INT(('T&E'!AD$9-Inputs!$F$15)/'T&E'!$F48)=('T&E'!AD$9-Inputs!$F$15)/'T&E'!$F48,1,0)) -> 0 | AE48: =IF(OR(AE$9<Inputs!$F$16,AE$9>Inputs!$F$19),0,IF(INT(('T&E'!AE$9-Inputs!$F$15)/'T&E'!$F48)=('T&E'!AE$9-Inputs!$F$15)/'T&E'!$F48,1,0)) -> 1 | AF48: =IF(OR(AF$9<Inputs!$F$16,AF$9>Inputs!$F$19),0,IF(INT(('T&E'!AF$9-Inputs!$F$15)/'T&E'!$F48)=('T&E'!AF$9-Inputs!$F$15)/'T&E'!$F48,1,0)) -> 0 | AG48: =IF(OR(AG$9<Inputs!$F$16,AG$9>Inputs!$F$19),0,IF(INT(('T&E'!AG$9-Inputs!$F$15)/'T&E'!$F48)=('T&E'!AG$9-Inputs!$F$15)/'T&E'!$F48,1,0)) -> 0 | AH48: =IF(OR(AH$9<Inputs!$F$16,AH$9>Inputs!$F$19),0,IF(INT(('T&E'!AH$9-Inputs!$F$15)/'T&E'!$F48)=('T&E'!AH$9-Inputs!$F$15)/'T&E'!$F48,1,0)) -> 0 | AI48: =IF(OR(AI$9<Inputs!$F$16,AI$9>Inputs!$F$19),0,IF(INT(('T&E'!AI$9-Inputs!$F$15)/'T&E'!$F48)=('T&E'!AI$9-Inputs!$F$15)/'T&E'!$F48,1,0)) -> 0 | AJ48: =IF(OR(AJ$9<Inputs!$F$16,AJ$9>Inputs!$F$19),0,IF(INT(('T&E'!AJ$9-Inputs!$F$15)/'T&E'!$F48)=('T&E'!AJ$9-Inputs!$F$15)/'T&E'!$F48,1,0)) -> 1 | AK48: =IF(OR(AK$9<Inputs!$F$16,AK$9>Inputs!$F$19),0,IF(INT(('T&E'!AK$9-Inputs!$F$15)/'T&E'!$F48)=('T&E'!AK$9-Inputs!$F$15)/'T&E'!$F48,1,0)) -> 0 | AL48: =IF(OR(AL$9<Inputs!$F$16,AL$9>Inputs!$F$19),0,IF(INT(('T&E'!AL$9-Inputs!$F$15)/'T&E'!$F48)=('T&E'!AL$9-Inputs!$F$15)/'T&E'!$F48,1,0)) -> 0 | AM48: =IF(OR(AM$9<Inputs!$F$16,AM$9>Inputs!$F$19),0,IF(INT(('T&E'!AM$9-Inputs!$F$15)/'T&E'!$F48)=('T&E'!AM$9-Inputs!$F$15)/'T&E'!$F48,1,0)) -> 0 | AN48: =IF(OR(AN$9<Inputs!$F$16,AN$9>Inputs!$F$19),0,IF(INT(('T&E'!AN$9-Inputs!$F$15)/'T&E'!$F48)=('T&E'!AN$9-Inputs!$F$15)/'T&E'!$F48,1,0)) -> 0 | AO48: =IF(OR(AO$9<Inputs!$F$16,AO$9>Inputs!$F$19),0,IF(INT(('T&E'!AO$9-Inputs!$F$15)/'T&E'!$F48)=('T&E'!AO$9-Inputs!$F$15)/'T&E'!$F48,1,0)) -> 1 | AP48: =IF(OR(AP$9<Inputs!$F$16,AP$9>Inputs!$F$19),0,IF(INT(('T&E'!AP$9-Inputs!$F$15)/'T&E'!$F48)=('T&E'!AP$9-Inputs!$F$15)/'T&E'!$F48,1,0)) -> 0 | AQ48: =IF(OR(AQ$9<Inputs!$F$16,AQ$9>Inputs!$F$19),0,IF(INT(('T&E'!AQ$9-Inputs!$F$15)/'T&E'!$F48)=('T&E'!AQ$9-Inputs!$F$15)/'T&E'!$F48,1,0)) -> 0 | AR48: =IF(OR(AR$9<Inputs!$F$16,AR$9>Inputs!$F$19),0,IF(INT(('T&E'!AR$9-Inputs!$F$15)/'T&E'!$F48)=('T&E'!AR$9-Inputs!$F$15)/'T&E'!$F48,1,0)) -> 0 | AS48: =IF(OR(AS$9<Inputs!$F$16,AS$9>Inputs!$F$19),0,IF(INT(('T&E'!AS$9-Inputs!$F$15)/'T&E'!$F48)=('T&E'!AS$9-Inputs!$F$15)/'T&E'!$F48,1,0)) -> 0 | AT48: =IF(OR(AT$9<Inputs!$F$16,AT$9>Inputs!$F$19),0,IF(INT(('T&E'!AT$9-Inputs!$F$15)/'T&E'!$F48)=('T&E'!AT$9-Inputs!$F$15)/'T&E'!$F48,1,0)) -> 1 | AU48: =IF(OR(AU$9<Inputs!$F$16,AU$9>Inputs!$F$19),0,IF(INT(('T&E'!AU$9-Inputs!$F$15)/'T&E'!$F48)=('T&E'!AU$9-Inputs!$F$15)/'T&E'!$F48,1,0)) -> 0
D50: Depreciation period flag
E51: =Inputs!E69 -> Depreciation start year
E52: =Inputs!E70 -> Pre-Feasibility Phase | F52: =Inputs!F70 -> 12 | G52: =Inputs!G70 -> year
E53: =Inputs!E71 -> Feasibility Phase | F53: =Inputs!F71 -> 12 | G53: =Inputs!G71 -> year
E54: =Inputs!E72 -> Design & Build - Collection System | F54: =Inputs!F72 -> 12 | G54: =Inputs!G72 -> year
E55: =Inputs!E73 -> Design & Build - Surface Vessels | F55: =Inputs!F73 -> 12 | G55: =Inputs!G73 -> year
E56: =Inputs!E74 -> Design & Build - Processing plant | F56: =Inputs!F74 -> 12 | G56: =Inputs!G74 -> year
E57: =Inputs!E75 -> Capitalized interest | F57: =Inputs!F75 -> 12 | G57: =Inputs!G75 -> year
E59: =Inputs!E76 -> Depreciation period
E60: =Inputs!E77 -> Pre-Feasibility Phase | F60: =Inputs!F77 -> 10 | G60: =Inputs!G77 -> years
E61: =Inputs!E78 -> Feasibility Phase | F61: =Inputs!F78 -> 10 | G61: =Inputs!G78 -> years
E62: =Inputs!E79 -> Design & Build - Collection System | F62: =Inputs!F79 -> 10 | G62: =Inputs!G79 -> years
E63: =Inputs!E80 -> Design & Build - Surface Vessels | F63: =Inputs!F80 -> 10 | G63: =Inputs!G80 -> years
E64: =Inputs!E81 -> Design & Build - Processing plant | F64: =Inputs!F81 -> 10 | G64: =Inputs!G81 -> years
E65: =Inputs!E82 -> Capitalized interest | F65: =Inputs!F82 -> 10 | G65: =Inputs!G82 -> years
E67: =Inputs!E77&" Depreciation period flag" -> Pre-Feasibility Phase Depreciation period flag | G67: flag | I67: =SUM(K67:AU67) -> 10 | K67: =IF(AND(K$9>=$F52,K$9<$F52+$F60),1,0) -> 0 | L67: 0 | M67: 0 | N67: 0 | O67: 0 | P67: 0 | Q67: 0 | R67: 0 | S67: 0 | T67: 0 | U67: 0 | V67: 1 | W67: 1 | X67: 1 | Y67: 1 | Z67: 1 | AA67: 1 | AB67: 1 | AC67: 1 | AD67: 1 | AE67: 1 | AF67: 0 | AG67: 0 | AH67: 0 | AI67: 0 | AJ67: 0 | AK67: 0 | AL67: 0 | AM67: 0 | AN67: 0 | AO67: 0 | AP67: 0 | AQ67: 0 | AR67: 0 | AS67: 0 | AT67: 0 | AU67: 0
E68: =Inputs!E78&" Depreciation period flag" -> Feasibility Phase Depreciation period flag | G68: flag | I68: 10 | K68: =IF(AND(K$9>=$F53,K$9<$F53+$F61),1,0) -> 0 | L68: 0 | M68: 0 | N68: 0 | O68: 0 | P68: 0 | Q68: 0 | R68: 0 | S68: 0 | T68: 0 | U68: 0 | V68: 1 | W68: 1 | X68: 1 | Y68: 1 | Z68: 1 | AA68: 1 | AB68: 1 | AC68: 1 | AD68: 1 | AE68: 1 | AF68: 0 | AG68: 0 | AH68: 0 | AI68: 0 | AJ68: 0 | AK68: 0 | AL68: 0 | AM68: 0 | AN68: 0 | AO68: 0 | AP68: 0 | AQ68: 0 | AR68: 0 | AS68: 0 | AT68: 0 | AU68: 0
E69: =Inputs!E79&" Depreciation period flag" -> Design & Build - Collection System Depreciation period flag | G69: flag | I69: 10 | K69: =IF(AND(K$9>=$F54,K$9<$F54+$F62),1,0) -> 0 | L69: 0 | M69: 0 | N69: 0 | O69: 0 | P69: 0 | Q69: 0 | R69: 0 | S69: 0 | T69: 0 | U69: 0 | V69: 1 | W69: 1 | X69: 1 | Y69: 1 | Z69: 1 | AA69: 1 | AB69: 1 | AC69: 1 | AD69: 1 | AE69: 1 | AF69: 0 | AG69: 0 | AH69: 0 | AI69: 0 | AJ69: 0 | AK69: 0 | AL69: 0 | AM69: 0 | AN69: 0 | AO69: 0 | AP69: 0 | AQ69: 0 | AR69: 0 | AS69: 0 | AT69: 0 | AU69: 0
E70: =Inputs!E80&" Depreciation period flag" -> Design & Build - Surface Vessels Depreciation period flag | G70: flag | I70: 10 | K70: =IF(AND(K$9>=$F55,K$9<$F55+$F63),1,0) -> 0 | L70: 0 | M70: 0 | N70: 0 | O70: 0 | P70: 0 | Q70: 0 | R70: 0 | S70: 0 | T70: 0 | U70: 0 | V70: 1 | W70: 1 | X70: 1 | Y70: 1 | Z70: 1 | AA70: 1 | AB70: 1 | AC70: 1 | AD70: 1 | AE70: 1 | AF70: 0 | AG70: 0 | AH70: 0 | AI70: 0 | AJ70: 0 | AK70: 0 | AL70: 0 | AM70: 0 | AN70: 0 | AO70: 0 | AP70: 0 | AQ70: 0 | AR70: 0 | AS70: 0 | AT70: 0 | AU70: 0
E71: =Inputs!E81&" Depreciation period flag" -> Design & Build - Processing plant Depreciation period flag | G71: flag | I71: 10 | K71: =IF(AND(K$9>=$F56,K$9<$F56+$F64),1,0) -> 0 | L71: 0 | M71: 0 | N71: 0 | O71: 0 | P71: 0 | Q71: 0 | R71: 0 | S71: 0 | T71: 0 | U71: 0 | V71: 1 | W71: 1 | X71: 1 | Y71: 1 | Z71: 1 | AA71: 1 | AB71: 1 | AC71: 1 | AD71: 1 | AE71: 1 | AF71: 0 | AG71: 0 | AH71: 0 | AI71: 0 | AJ71: 0 | AK71: 0 | AL71: 0 | AM71: 0 | AN71: 0 | AO71: 0 | AP71: 0 | AQ71: 0 | AR71: 0 | AS71: 0 | AT71: 0 | AU71: 0
E72: =Inputs!E82&" Depreciation period flag" -> Capitalized interest Depreciation period flag | G72: flag | I72: 10 | K72: 0 | L72: 0 | M72: 0 | N72: 0 | O72: 0 | P72: 0 | Q72: 0 | R72: 0 | S72: 0 | T72: 0 | U72: 0 | V72: 1 | W72: 1 | X72: 1 | Y72: 1 | Z72: 1 | AA72: 1 | AB72: 1 | AC72: 1 | AD72: 1 | AE72: 1 | AF72: 0 | AG72: 0 | AH72: 0 | AI72: 0 | AJ72: 0 | AK72: 0 | AL72: 0 | AM72: 0 | AN72: 0 | AO72: 0 | AP72: 0 | AQ72: 0 | AR72: 0 | AS72: 0 | AT72: 0 | AU72: 0
D74: Shut down period flag
E75: =Inputs!E20 -> Shutdown - start | F75: =Inputs!F20 -> 37 | G75: =Inputs!G20 -> year
E76: =Inputs!E21 -> Shutdown - end | F76: =Inputs!F21 -> 37 | G76: =Inputs!G21 -> year
E77: Shut down period flag | G77: flag | I77: =SUM(K77:AU77) -> 1 | K77: =IF(K$9<$F75,0,IF(K$9>$F76,0,1)) -> 0 | L77: 0 | M77: 0 | N77: 0 | O77: 0 | P77: 0 | Q77: 0 | R77: 0 | S77: 0 | T77: 0 | U77: 0 | V77: 0 | W77: 0 | X77: 0 | Y77: 0 | Z77: 0 | AA77: 0 | AB77: 0 | AC77: 0 | AD77: 0 | AE77: 0 | AF77: 0 | AG77: 0 | AH77: 0 | AI77: 0 | AJ77: 0 | AK77: 0 | AL77: 0 | AM77: 0 | AN77: 0 | AO77: 0 | AP77: 0 | AQ77: 0 | AR77: 0 | AS77: 0 | AT77: 0 | AU77: 1
A79: Escalation
D81: Inflation factor
E82: =Inputs!E126 -> Inflation rate | K82: =Inputs!K126 -> 0.035 | L82: =Inputs!L126 -> 0.022 | M82: =Inputs!M126 -> 0.02 | N82: =Inputs!N126 -> 0.02 | O82: =Inputs!O126 -> 0.02 | P82: =Inputs!P126 -> 0.02 | Q82: =Inputs!Q126 -> 0.02 | R82: =Inputs!R126 -> 0.02 | S82: =Inputs!S126 -> 0.02 | T82: =Inputs!T126 -> 0.02 | U82: =Inputs!U126 -> 0.02 | V82: =Inputs!V126 -> 0.02 | W82: =Inputs!W126 -> 0.02 | X82: =Inputs!X126 -> 0.02 | Y82: =Inputs!Y126 -> 0.02 | Z82: =Inputs!Z126 -> 0.02 | AA82: =Inputs!AA126 -> 0.02 | AB82: =Inputs!AB126 -> 0.02 | AC82: =Inputs!AC126 -> 0.02 | AD82: =Inputs!AD126 -> 0.02 | AE82: =Inputs!AE126 -> 0.02 | AF82: =Inputs!AF126 -> 0.02 | AG82: =Inputs!AG126 -> 0.02 | AH82: =Inputs!AH126 -> 0.02 | AI82: =Inputs!AI126 -> 0.02 | AJ82: =Inputs!AJ126 -> 0.02 | AK82: =Inputs!AK126 -> 0.02 | AL82: =Inputs!AL126 -> 0.02 | AM82: =Inputs!AM126 -> 0.02 | AN82: =Inputs!AN126 -> 0.02 | AO82: =Inputs!AO126 -> 0.02 | AP82: =Inputs!AP126 -> 0.02 | AQ82: =Inputs!AQ126 -> 0.02 | AR82: =Inputs!AR126 -> 0.02 | AS82: =Inputs!AS126 -> 0.02 | AT82: =Inputs!AT126 -> 0.02 | AU82: =Inputs!AU126 -> 0.02
E83: Inflation factor | G83: index | K83: =Inputs!F140 -> 1 | L83: =K83*(1+K82) -> 1.035 | M83: =L83*(1+L82) -> 1.05777 | N83: =M83*(1+M82) -> 1.0789254 | O83: 1.100503908 | P83: 1.122513986 | Q83: 1.144964266 | R83: 1.167863551 | S83: 1.191220822 | T83: 1.215045239 | U83: 1.239346143 | V83: 1.264133066 | W83: 1.289415728 | X83: 1.315204042 | Y83: 1.341508123 | Z83: 1.368338285 | AA83: 1.395705051 | AB83: 1.423619152 | AC83: 1.452091535 | AD83: 1.481133366 | AE83: 1.510756033 | AF83: 1.540971154 | AG83: 1.571790577 | AH83: 1.603226389 | AI83: 1.635290916 | AJ83: 1.667996735 | AK83: 1.701356669 | AL83: 1.735383803 | AM83: 1.770091479 | AN83: 1.805493308 | AO83: 1.841603175 | AP83: 1.878435238 | AQ83: 1.916003943 | AR83: 1.954324022 | AS83: 1.993410502 | AT83: 2.033278712 | AU83: 2.073944286
D85: Discount factor
E86: =+Inputs!E130 -> ISA Discount Rate | F86: =+Inputs!F130 -> 0.1 | G86: %
E87: ISA Discount factor | G87: index | K87: =1/(1+$F86)^(K$9-1) -> 1 | L87: 0.9090909091 | M87: 0.826446281 | N87: 0.7513148009 | O87: 0.6830134554 | P87: 0.6209213231 | Q87: 0.5644739301 | R87: 0.5131581182 | S87: 0.4665073802 | T87: 0.4240976184 | U87: 0.3855432894 | V87: 0.3504938995 | W87: 0.3186308177 | X87: 0.2896643797 | Y87: 0.2633312543 | Z87: 0.2393920494 | AA87: 0.2176291358 | AB87: 0.1978446689 | AC87: 0.1798587899 | AD87: 0.1635079908 | AE87: 0.148643628 | AF87: 0.1351305709 | AG87: 0.1228459736 | AH87: 0.1116781578 | AI87: 0.101525598 | AJ87: 0.09229599818 | AK87: 0.08390545289 | AL87: 0.07627768444 | AM87: 0.06934334949 | AN87: 0.06303940863 | AO87: 0.0573085533 | AP87: 0.05209868482 | AQ87: 0.04736244074 | AR87: 0.04305676431 | AS87: 0.03914251301 | AT87: 0.03558410274 | AU87: 0.03234918431
E88: =+Inputs!E131 -> Collector Shareholder Discount Rate | F88: =+Inputs!F131 -> 0.1 | G88: %
E89: Collector Shareholder Discount factor | G89: index | K89: =1/(1+$F88)^(K$9-1) -> 1 | L89: 0.9090909091 | M89: 0.826446281 | N89: 0.7513148009 | O89: 0.6830134554 | P89: 0.6209213231 | Q89: 0.5644739301 | R89: 0.5131581182 | S89: 0.4665073802 | T89: 0.4240976184 | U89: 0.3855432894 | V89: 0.3504938995 | W89: 0.3186308177 | X89: 0.2896643797 | Y89: 0.2633312543 | Z89: 0.2393920494 | AA89: 0.2176291358 | AB89: 0.1978446689 | AC89: 0.1798587899 | AD89: 0.1635079908 | AE89: 0.148643628 | AF89: 0.1351305709 | AG89: 0.1228459736 | AH89: 0.1116781578 | AI89: 0.101525598 | AJ89: 0.09229599818 | AK89: 0.08390545289 | AL89: 0.07627768444 | AM89: 0.06934334949 | AN89: 0.06303940863 | AO89: 0.0573085533 | AP89: 0.05209868482 | AQ89: 0.04736244074 | AR89: 0.04305676431 | AS89: 0.03914251301 | AT89: 0.03558410274 | AU89: 0.03234918431
E90: =Inputs!E132 -> Sponsoring State Discount Rate | F90: =Inputs!F132 -> 0.1 | G90: =Inputs!G132 -> %
E91: Sponsoring State Discount factor | G91: index | K91: 1 | L91: 0.9090909091 | M91: 0.826446281 | N91: 0.7513148009 | O91: 0.6830134554 | P91: 0.6209213231 | Q91: 0.5644739301 | R91: 0.5131581182 | S91: 0.4665073802 | T91: 0.4240976184 | U91: 0.3855432894 | V91: 0.3504938995 | W91: 0.3186308177 | X91: 0.2896643797 | Y91: 0.2633312543 | Z91: 0.2393920494 | AA91: 0.2176291358 | AB91: 0.1978446689 | AC91: 0.1798587899 | AD91: 0.1635079908 | AE91: 0.148643628 | AF91: 0.1351305709 | AG91: 0.1228459736 | AH91: 0.1116781578 | AI91: 0.101525598 | AJ91: 0.09229599818 | AK91: 0.08390545289 | AL91: 0.07627768444 | AM91: 0.06934334949 | AN91: 0.06303940863 | AO91: 0.0573085533 | AP91: 0.05209868482 | AQ91: 0.04736244074 | AR91: 0.04305676431 | AS91: 0.03914251301 | AT91: 0.03558410274 | AU91: 0.03234918431
A93: END MODEL

Sheet Project Cashflows
A1: =RIGHT( CELL("filename",$A$1), LEN( CELL("filename",$A$1)) - SEARCH("]", CELL("filename",$A$1))) -> Project Cashflows | K1: ='T&E'!K9 -> 1 | L1: ='T&E'!L9 -> 2 | M1: ='T&E'!M9 -> 3 | N1: ='T&E'!N9 -> 4 | O1: ='T&E'!O9 -> 5 | P1: ='T&E'!P9 -> 6 | Q1: ='T&E'!Q9 -> 7 | R1: ='T&E'!R9 -> 8 | S1: ='T&E'!S9 -> 9 | T1: ='T&E'!T9 -> 10 | U1: ='T&E'!U9 -> 11 | V1: ='T&E'!V9 -> 12 | W1: ='T&E'!W9 -> 13 | X1: ='T&E'!X9 -> 14 | Y1: ='T&E'!Y9 -> 15 | Z1: ='T&E'!Z9 -> 16 | AA1: ='T&E'!AA9 -> 17 | AB1: ='T&E'!AB9 -> 18 | AC1: ='T&E'!AC9 -> 19 | AD1: ='T&E'!AD9 -> 20 | AE1: ='T&E'!AE9 -> 21 | AF1: ='T&E'!AF9 -> 22 | AG1: ='T&E'!AG9 -> 23 | AH1: ='T&E'!AH9 -> 24 | AI1: ='T&E'!AI9 -> 25 | AJ1: ='T&E'!AJ9 -> 26 | AK1: ='T&E'!AK9 -> 27 | AL1: ='T&E'!AL9 -> 28 | AM1: ='T&E'!AM9 -> 29 | AN1: ='T&E'!AN9 -> 30 | AO1: ='T&E'!AO9 -> 31 | AP1: ='T&E'!AP9 -> 32 | AQ1: ='T&E'!AQ9 -> 33 | AR1: ='T&E'!AR9 -> 34 | AS1: ='T&E'!AS9 -> 35 | AT1: ='T&E'!AT9 -> 36 | AU1: ='T&E'!AU9 -> 37
E2: Row description | F2: Constant | G2: Units | H2: Comments | I2: Total
E3: Sheet Check: | F3: =F295+F324+F363+F396+F419+F446 -> 0 | G3: Checks
A4: Project data with sensitivity factors applied
B6: Sensitivity factors
E7: =Dashboard!B17 -> Production sensitivity | F7: =Dashboard!C17 -> 1 | G7: =Dashboard!D17 -> factor
E8: =Dashboard!B16 -> Price sensitivity | F8: =Dashboard!C16 -> 1 | G8: =Dashboard!D16 -> factor
E9: =Dashboard!B18 -> Opex sensitivity | F9: =Dashboard!C18 -> 1 | G9: =Dashboard!D18 -> factor
E10: =Dashboard!B19 -> Capex sensitivity | F10: =Dashboard!C19 -> 1 | G10: =Dashboard!D19 -> factor
B12: Project data with sensitivies applied
C14: Production
E15: ='T&E'!E31 -> Ramp up period flag | I15: ='T&E'!I31 -> 2 | K15: ='T&E'!K31 -> 0 | L15: ='T&E'!L31 -> 0 | M15: ='T&E'!M31 -> 0 | N15: ='T&E'!N31 -> 0 | O15: ='T&E'!O31 -> 0 | P15: ='T&E'!P31 -> 0 | Q15: ='T&E'!Q31 -> 0 | R15: ='T&E'!R31 -> 0 | S15: ='T&E'!S31 -> 0 | T15: ='T&E'!T31 -> 0 | U15: ='T&E'!U31 -> 0 | V15: ='T&E'!V31 -> 1 | W15: ='T&E'!W31 -> 1 | X15: ='T&E'!X31 -> 0 | Y15: ='T&E'!Y31 -> 0 | Z15: ='T&E'!Z31 -> 0 | AA15: ='T&E'!AA31 -> 0 | AB15: ='T&E'!AB31 -> 0 | AC15: ='T&E'!AC31 -> 0 | AD15: ='T&E'!AD31 -> 0 | AE15: ='T&E'!AE31 -> 0 | AF15: ='T&E'!AF31 -> 0 | AG15: ='T&E'!AG31 -> 0 | AH15: ='T&E'!AH31 -> 0 | AI15: ='T&E'!AI31 -> 0 | AJ15: ='T&E'!AJ31 -> 0 | AK15: ='T&E'!AK31 -> 0 | AL15: ='T&E'!AL31 -> 0 | AM15: ='T&E'!AM31 -> 0 | AN15: ='T&E'!AN31 -> 0 | AO15: ='T&E'!AO31 -> 0 | AP15: ='T&E'!AP31 -> 0 | AQ15: ='T&E'!AQ31 -> 0 | AR15: ='T&E'!AR31 -> 0 | AS15: ='T&E'!AS31 -> 0 | AT15: ='T&E'!AT31 -> 0 | AU15: ='T&E'!AU31 -> 0
E16: ='T&E'!E36 -> Full Operation period flag | I16: ='T&E'!I36 -> 23 | K16: ='T&E'!K36 -> 0 | L16: ='T&E'!L36 -> 0 | M16: ='T&E'!M36 -> 0 | N16: ='T&E'!N36 -> 0 | O16: ='T&E'!O36 -> 0 | P16: ='T&E'!P36 -> 0 | Q16: ='T&E'!Q36 -> 0 | R16: ='T&E'!R36 -> 0 | S16: ='T&E'!S36 -> 0 | T16: ='T&E'!T36 -> 0 | U16: ='T&E'!U36 -> 0 | V16: ='T&E'!V36 -> 0 | W16: ='T&E'!W36 -> 0 | X16: ='T&E'!X36 -> 1 | Y16: ='T&E'!Y36 -> 1 | Z16: ='T&E'!Z36 -> 1 | AA16: ='T&E'!AA36 -> 1 | AB16: ='T&E'!AB36 -> 1 | AC16: ='T&E'!AC36 -> 1 | AD16: ='T&E'!AD36 -> 1 | AE16: ='T&E'!AE36 -> 1 | AF16: ='T&E'!AF36 -> 1 | AG16: ='T&E'!AG36 -> 1 | AH16: ='T&E'!AH36 -> 1 | AI16: ='T&E'!AI36 -> 1 | AJ16: ='T&E'!AJ36 -> 1 | AK16: ='T&E'!AK36 -> 1 | AL16: ='T&E'!AL36 -> 1 | AM16: ='T&E'!AM36 -> 1 | AN16: ='T&E'!AN36 -> 1 | AO16: ='T&E'!AO36 -> 1 | AP16: ='T&E'!AP36 -> 1 | AQ16: ='T&E'!AQ36 -> 1 | AR16: ='T&E'!AR36 -> 1 | AS16: ='T&E'!AS36 -> 1 | AT16: ='T&E'!AT36 -> 1 | AU16: ='T&E'!AU36 -> 0
E17: Polymetallic nodule Production Level Rate | K17: =IF(K1=Inputs!$F$16,Inputs!$F$24,IF(K1=Inputs!$F$17,Inputs!$F$25,Inputs!$F$26*K16)) -> 0 | L17: =IF(L1=Inputs!$F$16,Inputs!$F$24,IF(L1=Inputs!$F$17,Inputs!$F$25,Inputs!$F$26*L16)) -> 0 | M17: =IF(M1=Inputs!$F$16,Inputs!$F$24,IF(M1=Inputs!$F$17,Inputs!$F$25,Inputs!$F$26*M16)) -> 0 | N17: =IF(N1=Inputs!$F$16,Inputs!$F$24,IF(N1=Inputs!$F$17,Inputs!$F$25,Inputs!$F$26*N16)) -> 0 | O17: =IF(O1=Inputs!$F$16,Inputs!$F$24,IF(O1=Inputs!$F$17,Inputs!$F$25,Inputs!$F$26*O16)) -> 0 | P17: =IF(P1=Inputs!$F$16,Inputs!$F$24,IF(P1=Inputs!$F$17,Inputs!$F$25,Inputs!$F$26*P16)) -> 0 | Q17: =IF(Q1=Inputs!$F$16,Inputs!$F$24,IF(Q1=Inputs!$F$17,Inputs!$F$25,Inputs!$F$26*Q16)) -> 0 | R17: =IF(R1=Inputs!$F$16,Inputs!$F$24,IF(R1=Inputs!$F$17,Inputs!$F$25,Inputs!$F$26*R16)) -> 0 | S17: =IF(S1=Inputs!$F$16,Inputs!$F$24,IF(S1=Inputs!$F$17,Inputs!$F$25,Inputs!$F$26*S16)) -> 0 | T17: =IF(T1=Inputs!$F$16,Inputs!$F$24,IF(T1=Inputs!$F$17,Inputs!$F$25,Inputs!$F$26*T16)) -> 0 | U17: =IF(U1=Inputs!$F$16,Inputs!$F$24,IF(U1=Inputs!$F$17,Inputs!$F$25,Inputs!$F$26*U16)) -> 0 | V17: =IF(V1=Inputs!$F$16,Inputs!$F$24,IF(V1=Inputs!$F$17,Inputs!$F$25,Inputs!$F$26*V16)) -> 0.7 | W17: =IF(W1=Inputs!$F$16,Inputs!$F$24,IF(W1=Inputs!$F$17,Inputs!$F$25,Inputs!$F$26*W16)) -> 0.85 | X17: =IF(X1=Inputs!$F$16,Inputs!$F$24,IF(X1=Inputs!$F$17,Inputs!$F$25,Inputs!$F$26*X16)) -> 1 | Y17: =IF(Y1=Inputs!$F$16,Inputs!$F$24,IF(Y1=Inputs!$F$17,Inputs!$F$25,Inputs!$F$26*Y16)) -> 1 | Z17: =IF(Z1=Inputs!$F$16,Inputs!$F$24,IF(Z1=Inputs!$F$17,Inputs!$F$25,Inputs!$F$26*Z16)) -> 1 | AA17: =IF(AA1=Inputs!$F$16,Inputs!$F$24,IF(AA1=Inputs!$F$17,Inputs!$F$25,Inputs!$F$26*AA16)) -> 1 | AB17: =IF(AB1=Inputs!$F$16,Inputs!$F$24,IF(AB1=Inputs!$F$17,Inputs!$F$25,Inputs!$F$26*AB16)) -> 1 | AC17: =IF(AC1=Inputs!$F$16,Inputs!$F$24,IF(AC1=Inputs!$F$17,Inputs!$F$25,Inputs!$F$26*AC16)) -> 1 | AD17: =IF(AD1=Inputs!$F$16,Inputs!$F$24,IF(AD1=Inputs!$F$17,Inputs!$F$25,Inputs!$F$26*AD16)) -> 1 | AE17: =IF(AE1=Inputs!$F$16,Inputs!$F$24,IF(AE1=Inputs!$F$17,Inputs!$F$25,Inputs!$F$26*AE16)) -> 1 | AF17: =IF(AF1=Inputs!$F$16,Inputs!$F$24,IF(AF1=Inputs!$F$17,Inputs!$F$25,Inputs!$F$26*AF16)) -> 1 | AG17: =IF(AG1=Inputs!$F$16,Inputs!$F$24,IF(AG1=Inputs!$F$17,Inputs!$F$25,Inputs!$F$26*AG16)) -> 1 | AH17: =IF(AH1=Inputs!$F$16,Inputs!$F$24,IF(AH1=Inputs!$F$17,Inputs!$F$25,Inputs!$F$26*AH16)) -> 1 | AI17: =IF(AI1=Inputs!$F$16,Inputs!$F$24,IF(AI1=Inputs!$F$17,Inputs!$F$25,Inputs!$F$26*AI16)) -> 1 | AJ17: =IF(AJ1=Inputs!$F$16,Inputs!$F$24,IF(AJ1=Inputs!$F$17,Inputs!$F$25,Inputs!$F$26*AJ16)) -> 1 | AK17: =IF(AK1=Inputs!$F$16,Inputs!$F$24,IF(AK1=Inputs!$F$17,Inputs!$F$25,Inputs!$F$26*AK16)) -> 1 | AL17: =IF(AL1=Inputs!$F$16,Inputs!$F$24,IF(AL1=Inputs!$F$17,Inputs!$F$25,Inputs!$F$26*AL16)) -> 1 | AM17: =IF(AM1=Inputs!$F$16,Inputs!$F$24,IF(AM1=Inputs!$F$17,Inputs!$F$25,Inputs!$F$26*AM16)) -> 1 | AN17: =IF(AN1=Inputs!$F$16,Inputs!$F$24,IF(AN1=Inputs!$F$17,Inputs!$F$25,Inputs!$F$26*AN16)) -> 1 | AO17: =IF(AO1=Inputs!$F$16,Inputs!$F$24,IF(AO1=Inputs!$F$17,Inputs!$F$25,Inputs!$F$26*AO16)) -> 1 | AP17: =IF(AP1=Inputs!$F$16,Inputs!$F$24,IF(AP1=Inputs!$F$17,Inputs!$F$25,Inputs!$F$26*AP16)) -> 1 | AQ17: =IF(AQ1=Inputs!$F$16,Inputs!$F$24,IF(AQ1=Inputs!$F$17,Inputs!$F$25,Inputs!$F$26*AQ16)) -> 1 | AR17: =IF(AR1=Inputs!$F$16,Inputs!$F$24,IF(AR1=Inputs!$F$17,Inputs!$F$25,Inputs!$F$26*AR16)) -> 1 | AS17: =IF(AS1=Inputs!$F$16,Inputs!$F$24,IF(AS1=Inputs!$F$17,Inputs!$F$25,Inputs!$F$26*AS16)) -> 1 | AT17: =IF(AT1=Inputs!$F$16,Inputs!$F$24,IF(AT1=Inputs!$F$17,Inputs!$F$25,Inputs!$F$26*AT16)) -> 1 | AU17: =IF(AU1=Inputs!$F$16,Inputs!$F$24,IF(AU1=Inputs!$F$17,Inputs!$F$25,Inputs!$F$26*AU16)) -> 0
E18: =Inputs!E29 -> Annual Full Production Level | F18: =Inputs!F29 -> 3.855762 | G18: =Inputs!G29 -> DMT
E20: Polymetallic nodule Production | G20: =G18 -> DMT | I20: =SUM(K20:AU20) -> 94.6589571 | K20: =K17*$F$18 -> 0 | L20: 0 | M20: 0 | N20: 0 | O20: 0 | P20: 0 | Q20: 0 | R20: 0 | S20: 0 | T20: 0 | U20: 0 | V20: 2.6990334 | W20: 3.2773977 | X20: 3.855762 | Y20: 3.855762 | Z20: 3.855762 | AA20: 3.855762 | AB20: 3.855762 | AC20: 3.855762 | AD20: 3.855762 | AE20: 3.855762 | AF20: 3.855762 | AG20: 3.855762 | AH20: 3.855762 | AI20: 3.855762 | AJ20: 3.855762 | AK20: 3.855762 | AL20: 3.855762 | AM20: 3.855762 | AN20: 3.855762 | AO20: 3.855762 | AP20: 3.855762 | AQ20: 3.855762 | AR20: 3.855762 | AS20: 3.855762 | AT20: 3.855762 | AU20: 0
E21: Production with sensitivity applied | G21: =G18 -> DMT | I21: =SUM(K21:AU21) -> 94.6589571 | K21: =K20*$F7 -> 0 | L21: 0 | M21: 0 | N21: 0 | O21: 0 | P21: 0 | Q21: 0 | R21: 0 | S21: 0 | T21: 0 | U21: 0 | V21: 2.6990334 | W21: 3.2773977 | X21: 3.855762 | Y21: 3.855762 | Z21: 3.855762 | AA21: 3.855762 | AB21: 3.855762 | AC21: 3.855762 | AD21: 3.855762 | AE21: 3.855762 | AF21: 3.855762 | AG21: 3.855762 | AH21: 3.855762 | AI21: 3.855762 | AJ21: 3.855762 | AK21: 3.855762 | AL21: 3.855762 | AM21: 3.855762 | AN21: 3.855762 | AO21: 3.855762 | AP21: 3.855762 | AQ21: 3.855762 | AR21: 3.855762 | AS21: 3.855762 | AT21: 3.855762 | AU21: 0
C23: Price
E24: ='T&E'!E83 -> Inflation factor | K24: ='T&E'!K83 -> 1 | L24: ='T&E'!L83 -> 1.035 | M24: ='T&E'!M83 -> 1.05777 | N24: ='T&E'!N83 -> 1.0789254 | O24: ='T&E'!O83 -> 1.100503908 | P24: ='T&E'!P83 -> 1.122513986 | Q24: ='T&E'!Q83 -> 1.144964266 | R24: ='T&E'!R83 -> 1.167863551 | S24: ='T&E'!S83 -> 1.191220822 | T24: ='T&E'!T83 -> 1.215045239 | U24: ='T&E'!U83 -> 1.239346143 | V24: ='T&E'!V83 -> 1.264133066 | W24: ='T&E'!W83 -> 1.289415728 | X24: ='T&E'!X83 -> 1.315204042 | Y24: ='T&E'!Y83 -> 1.341508123 | Z24: ='T&E'!Z83 -> 1.368338285 | AA24: ='T&E'!AA83 -> 1.395705051 | AB24: ='T&E'!AB83 -> 1.423619152 | AC24: ='T&E'!AC83 -> 1.452091535 | AD24: ='T&E'!AD83 -> 1.481133366 | AE24: ='T&E'!AE83 -> 1.510756033 | AF24: ='T&E'!AF83 -> 1.540971154 | AG24: ='T&E'!AG83 -> 1.571790577 | AH24: ='T&E'!AH83 -> 1.603226389 | AI24: ='T&E'!AI83 -> 1.635290916 | AJ24: ='T&E'!AJ83 -> 1.667996735 | AK24: ='T&E'!AK83 -> 1.701356669 | AL24: ='T&E'!AL83 -> 1.735383803 | AM24: ='T&E'!AM83 -> 1.770091479 | AN24: ='T&E'!AN83 -> 1.805493308 | AO24: ='T&E'!AO83 -> 1.841603175 | AP24: ='T&E'!AP83 -> 1.878435238 | AQ24: ='T&E'!AQ83 -> 1.916003943 | AR24: ='T&E'!AR83 -> 1.954324022 | AS24: ='T&E'!AS83 -> 1.993410502 | AT24: ='T&E'!AT83 -> 2.033278712 | AU24: ='T&E'!AU83 -> 2.073944286
E25: Manganese Metal Price | F25: =Dashboard!C10 -> 1560 | G25: =Dashboard!D10 -> US$/T
E26: Manganese Ore Price | F26: =Dashboard!C11 -> 4.75 | G26: =Dashboard!D11 -> US$/DMTU
E27: Nickel Price | F27: =Dashboard!C12 -> 20000 | G27: =Dashboard!D12 -> US$/T
E28: Cobalt Price | F28: =Dashboard!C13 -> 60000 | G28: =Dashboard!D13 -> US$/T
E29: Copper Price | F29: =Dashboard!C14 -> 9000 | G29: =Dashboard!D14 -> US$/T
E31: Manganese Metal Price | G31: =G25 -> US$/T | K31: =K$24*$F25 -> 1560 | L31: =L$24*$F25 -> 1614.6 | M31: 1650.1212 | N31: 1683.123624 | O31: 1716.786096 | P31: 1751.121818 | Q31: 1786.144255 | R31: 1821.86714 | S31: 1858.304483 | T31: 1895.470572 | U31: 1933.379984 | V31: 1972.047583 | W31: 2011.488535 | X31: 2051.718306 | Y31: 2092.752672 | Z31: 2134.607725 | AA31: 2177.29988 | AB31: 2220.845877 | AC31: 2265.262795 | AD31: 2310.568051 | AE31: 2356.779412 | AF31: 2403.915 | AG31: 2451.9933 | AH31: 2501.033166 | AI31: 2551.05383 | AJ31: 2602.074906 | AK31: 2654.116404 | AL31: 2707.198732 | AM31: 2761.342707 | AN31: 2816.569561 | AO31: 2872.900952 | AP31: 2930.358971 | AQ31: 2988.966151 | AR31: 3048.745474 | AS31: 3109.720383 | AT31: 3171.914791 | AU31: 3235.353087
E32: Manganese Ore Price | G32: =G26 -> US$/DMTU | K32: =K$24*$F26 -> 4.75 | L32: 4.91625 | M32: 5.0244075 | N32: 5.12489565 | O32: 5.227393563 | P32: 5.331941434 | Q32: 5.438580263 | R32: 5.547351868 | S32: 5.658298906 | T32: 5.771464884 | U32: 5.886894181 | V32: 6.004632065 | W32: 6.124724706 | X32: 6.2472192 | Y32: 6.372163584 | Z32: 6.499606856 | AA32: 6.629598993 | AB32: 6.762190973 | AC32: 6.897434793 | AD32: 7.035383488 | AE32: 7.176091158 | AF32: 7.319612981 | AG32: 7.466005241 | AH32: 7.615325346 | AI32: 7.767631853 | AJ32: 7.92298449 | AK32: 8.08144418 | AL32: 8.243073063 | AM32: 8.407934524 | AN32: 8.576093215 | AO32: 8.747615079 | AP32: 8.922567381 | AQ32: 9.101018728 | AR32: 9.283039103 | AS32: 9.468699885 | AT32: 9.658073883 | AU32: 9.85123536
E33: Nickel Price | G33: US$/T | K33: =K$24*$F27 -> 20000 | L33: 20700 | M33: 21155.4 | N33: 21578.508 | O33: 22010.07816 | P33: 22450.27972 | Q33: 22899.28532 | R33: 23357.27102 | S33: 23824.41644 | T33: 24300.90477 | U33: 24786.92287 | V33: 25282.66133 | W33: 25788.31455 | X33: 26304.08084 | Y33: 26830.16246 | Z33: 27366.76571 | AA33: 27914.10102 | AB33: 28472.38304 | AC33: 29041.83071 | AD33: 29622.66732 | AE33: 30215.12067 | AF33: 30819.42308 | AG33: 31435.81154 | AH33: 32064.52777 | AI33: 32705.81833 | AJ33: 33359.93469 | AK33: 34027.13339 | AL33: 34707.67606 | AM33: 35401.82958 | AN33: 36109.86617 | AO33: 36832.06349 | AP33: 37568.70476 | AQ33: 38320.07886 | AR33: 39086.48043 | AS33: 39868.21004 | AT33: 40665.57424 | AU33: 41478.88573
E34: Cobalt Price | G34: US$/T | K34: =K$24*$F28 -> 60000 | L34: 62100 | M34: 63466.2 | N34: 64735.524 | O34: 66030.23448 | P34: 67350.83917 | Q34: 68697.85595 | R34: 70071.81307 | S34: 71473.24933 | T34: 72902.71432 | U34: 74360.76861 | V34: 75847.98398 | W34: 77364.94366 | X34: 78912.24253 | Y34: 80490.48738 | Z34: 82100.29713 | AA34: 83742.30307 | AB34: 85417.14913 | AC34: 87125.49212 | AD34: 88868.00196 | AE34: 90645.362 | AF34: 92458.26924 | AG34: 94307.43462 | AH34: 96193.58332 | AI34: 98117.45498 | AJ34: 100079.8041 | AK34: 102081.4002 | AL34: 104123.0282 | AM34: 106205.4887 | AN34: 108329.5985 | AO34: 110496.1905 | AP34: 112706.1143 | AQ34: 114960.2366 | AR34: 117259.4413 | AS34: 119604.6301 | AT34: 121996.7227 | AU34: 124436.6572
E35: Copper Price | G35: US$/T | K35: =K$24*$F29 -> 9000 | L35: 9315 | M35: 9519.93 | N35: 9710.3286 | O35: 9904.535172 | P35: 10102.62588 | Q35: 10304.67839 | R35: 10510.77196 | S35: 10720.9874 | T35: 10935.40715 | U35: 11154.11529 | V35: 11377.1976 | W35: 11604.74155 | X35: 11836.83638 | Y35: 12073.57311 | Z35: 12315.04457 | AA35: 12561.34546 | AB35: 12812.57237 | AC35: 13068.82382 | AD35: 13330.20029 | AE35: 13596.8043 | AF35: 13868.74039 | AG35: 14146.11519 | AH35: 14429.0375 | AI35: 14717.61825 | AJ35: 15011.97061 | AK35: 15312.21002 | AL35: 15618.45422 | AM35: 15930.82331 | AN35: 16249.43978 | AO35: 16574.42857 | AP35: 16905.91714 | AQ35: 17244.03549 | AR35: 17588.9162 | AS35: 17940.69452 | AT35: 18299.50841 | AU35: 18665.49858
E37: =+E25&" with sensitivity applied" -> Manganese Metal Price with sensitivity applied | G37: =G31 -> US$/T | K37: =K31*$F$8 -> 1560 | L37: 1614.6 | M37: 1650.1212 | N37: 1683.123624 | O37: 1716.786096 | P37: 1751.121818 | Q37: 1786.144255 | R37: 1821.86714 | S37: 1858.304483 | T37: 1895.470572 | U37: 1933.379984 | V37: 1972.047583 | W37: 2011.488535 | X37: 2051.718306 | Y37: 2092.752672 | Z37: 2134.607725 | AA37: 2177.29988 | AB37: 2220.845877 | AC37: 2265.262795 | AD37: 2310.568051 | AE37: 2356.779412 | AF37: 2403.915 | AG37: 2451.9933 | AH37: 2501.033166 | AI37: 2551.05383 | AJ37: 2602.074906 | AK37: 2654.116404 | AL37: 2707.198732 | AM37: 2761.342707 | AN37: 2816.569561 | AO37: 2872.900952 | AP37: 2930.358971 | AQ37: 2988.966151 | AR37: 3048.745474 | AS37: 3109.720383 | AT37: 3171.914791 | AU37: 3235.353087
E38: =+E26&" with sensitivity applied" -> Manganese Ore Price with sensitivity applied | G38: =G32 -> US$/DMTU | K38: =K32*$F$8 -> 4.75 | L38: 4.91625 | M38: 5.0244075 | N38: 5.12489565 | O38: 5.227393563 | P38: 5.331941434 | Q38: 5.438580263 | R38: 5.547351868 | S38: 5.658298906 | T38: 5.771464884 | U38: 5.886894181 | V38: 6.004632065 | W38: 6.124724706 | X38: 6.2472192 | Y38: 6.372163584 | Z38: 6.499606856 | AA38: 6.629598993 | AB38: 6.762190973 | AC38: 6.897434793 | AD38: 7.035383488 | AE38: 7.176091158 | AF38: 7.319612981 | AG38: 7.466005241 | AH38: 7.615325346 | AI38: 7.767631853 | AJ38: 7.92298449 | AK38: 8.08144418 | AL38: 8.243073063 | AM38: 8.407934524 | AN38: 8.576093215 | AO38: 8.747615079 | AP38: 8.922567381 | AQ38: 9.101018728 | AR38: 9.283039103 | AS38: 9.468699885 | AT38: 9.658073883 | AU38: 9.85123536
E39: =+E27&" with sensitivity applied" -> Nickel Price with sensitivity applied | G39: US$/T | K39: =K33*$F$8 -> 20000 | L39: 20700 | M39: 21155.4 | N39: 21578.508 | O39: 22010.07816 | P39: 22450.27972 | Q39: 22899.28532 | R39: 23357.27102 | S39: 23824.41644 | T39: 24300.90477 | U39: 24786.92287 | V39: 25282.66133 | W39: 25788.31455 | X39: 26304.08084 | Y39: 26830.16246 | Z39: 27366.76571 | AA39: 27914.10102 | AB39: 28472.38304 | AC39: 29041.83071 | AD39: 29622.66732 | AE39: 30215.12067 | AF39: 30819.42308 | AG39: 31435.81154 | AH39: 32064.52777 | AI39: 32705.81833 | AJ39: 33359.93469 | AK39: 34027.13339 | AL39: 34707.67606 | AM39: 35401.82958 | AN39: 36109.86617 | AO39: 36832.06349 | AP39: 37568.70476 | AQ39: 38320.07886 | AR39: 39086.48043 | AS39: 39868.21004 | AT39: 40665.57424 | AU39: 41478.88573
E40: =+E28&" with sensitivity applied" -> Cobalt Price with sensitivity applied | G40: US$/T | K40: =K34*$F$8 -> 60000 | L40: 62100 | M40: 63466.2 | N40: 64735.524 | O40: 66030.23448 | P40: 67350.83917 | Q40: 68697.85595 | R40: 70071.81307 | S40: 71473.24933 | T40: 72902.71432 | U40: 74360.76861 | V40: 75847.98398 | W40: 77364.94366 | X40: 78912.24253 | Y40: 80490.48738 | Z40: 82100.29713 | AA40: 83742.30307 | AB40: 85417.14913 | AC40: 87125.49212 | AD40: 88868.00196 | AE40: 90645.362 | AF40: 92458.26924 | AG40: 94307.43462 | AH40: 96193.58332 | AI40: 98117.45498 | AJ40: 100079.8041 | AK40: 102081.4002 | AL40: 104123.0282 | AM40: 106205.4887 | AN40: 108329.5985 | AO40: 110496.1905 | AP40: 112706.1143 | AQ40: 114960.2366 | AR40: 117259.4413 | AS40: 119604.6301 | AT40: 121996.7227 | AU40: 124436.6572
E41: =+E29&" with sensitivity applied" -> Copper Price with sensitivity applied | G41: US$/T | K41: =K35*$F$8 -> 9000 | L41: 9315 | M41: 9519.93 | N41: 9710.3286 | O41: 9904.535172 | P41: 10102.62588 | Q41: 10304.67839 | R41: 10510.77196 | S41: 10720.9874 | T41: 10935.40715 | U41: 11154.11529 | V41: 11377.1976 | W41: 11604.74155 | X41: 11836.83638 | Y41: 12073.57311 | Z41: 12315.04457 | AA41: 12561.34546 | AB41: 12812.57237 | AC41: 13068.82382 | AD41: 13330.20029 | AE41: 13596.8043 | AF41: 13868.74039 | AG41: 14146.11519 | AH41: 14429.0375 | AI41: 14717.61825 | AJ41: 15011.97061 | AK41: 15312.21002 | AL41: 15618.45422 | AM41: 15930.82331 | AN41: 16249.43978 | AO41: 16574.42857 | AP41: 16905.91714 | AQ41: 17244.03549 | AR41: 17588.9162 | AS41: 17940.69452 | AT41: 18299.50841 | AU41: 18665.49858
C43: Opex
E44: =Inputs!E100 -> Nodule Collectors | F44: =Inputs!F100 -> 110.6641706 | G44: =Inputs!G100 -> US$ mn/ton nodules/yr
E45: =Inputs!E101 -> Metals Processors - Metal | F45: =Inputs!F101 -> 256.658713 | G45: =Inputs!G101 -> US$ mn/ton nodules/yr | H45: =Inputs!H101 -> Processing cost for 4 metals
E46: =Inputs!E102 -> Metals Processors - Ore | F46: =Inputs!F102 -> 61.15659751 | G46: =Inputs!G102 -> US$ mn/ton nodules/yr | H46: =Inputs!H102 -> Processing cost for 3 metals + Manganese Ore
E47: =Inputs!E103 -> Nodule Collectors - Opex cost fixed ratio during ramp up | F47: =Inputs!F103 -> 0.5 | G47: =Inputs!G103 -> %
E48: =Inputs!E104 -> Metals Processors - Opex cost fixed ratio during ramp up | F48: =Inputs!F104 -> 0.5 | G48: =Inputs!G104 -> %
E50: Selected Metal Processor Opex: | F50: =INDEX($F$45:$F$46,MATCH(Dashboard!$C$7,'Fiscal Model'!$F$105:$F$106,0)) -> 61.15659751 | G50: =+G45 -> US$ mn/ton nodules/yr
E52: Nodule Collectors Opex - ramp up | I52: =SUM(K52:AU52) -> 967.4118985 | K52: =($F$44*$F$47*K21+$F$44*(1-$F$47)*$F$18)*K$15*K24 -> 0 | L52: 0 | M52: 0 | N52: 0 | O52: 0 | P52: 0 | Q52: 0 | R52: 0 | S52: 0 | T52: 0 | U52: 0 | V52: 458.4890514 | W52: 508.9228471 | X52: 0 | Y52: 0 | Z52: 0 | AA52: 0 | AB52: 0 | AC52: 0 | AD52: 0 | AE52: 0 | AF52: 0 | AG52: 0 | AH52: 0 | AI52: 0 | AJ52: 0 | AK52: 0 | AL52: 0 | AM52: 0 | AN52: 0 | AO52: 0 | AP52: 0 | AQ52: 0 | AR52: 0 | AS52: 0 | AT52: 0 | AU52: 0
E53: Metals Processors Opex - ramp up | I53: 602.1403005 | K53: =$F$50*($F$52*K21+(1-$F$52)*$F$18)*K$15*K24 -> 0 | L53: =$F$50*($F$52*L21+(1-$F$52)*$F$18)*L$15*L24 -> 0 | M53: 0 | N53: 0 | O53: 0 | P53: 0 | Q53: 0 | R53: 0 | S53: 0 | T53: 0 | U53: 0 | V53: 298.0892577 | W53: 304.0510428 | X53: 0 | Y53: 0 | Z53: 0 | AA53: 0 | AB53: 0 | AC53: 0 | AD53: 0 | AE53: 0 | AF53: 0 | AG53: 0 | AH53: 0 | AI53: 0 | AJ53: 0 | AK53: 0 | AL53: 0 | AM53: 0 | AN53: 0 | AO53: 0 | AP53: 0 | AQ53: 0 | AR53: 0 | AS53: 0 | AT53: 0 | AU53: 0
E54: Nodule Collectors Opex - full production | I54: 16187.52218 | K54: =$F44*K$21*K16*K24 -> 0 | L54: =$F44*L$21*L16*L24 -> 0 | M54: 0 | N54: 0 | O54: 0 | P54: 0 | Q54: 0 | R54: 0 | S54: 0 | T54: 0 | U54: 0 | V54: 0 | W54: 0 | X54: 561.190599 | Y54: 572.4144109 | Z54: 583.8626992 | AA54: 595.5399531 | AB54: 607.4507522 | AC54: 619.5997672 | AD54: 631.9917626 | AE54: 644.6315978 | AF54: 657.5242298 | AG54: 670.6747144 | AH54: 684.0882087 | AI54: 697.7699729 | AJ54: 711.7253723 | AK54: 725.9598798 | AL54: 740.4790774 | AM54: 755.2886589 | AN54: 770.3944321 | AO54: 785.8023207 | AP54: 801.5183671 | AQ54: 817.5487345 | AR54: 833.8997092 | AS54: 850.5777034 | AT54: 867.5892574 | AU54: 0
E55: Metals Processors Opex - full production | I55: 8945.747967 | K55: =$F$50*K$21*K16*K24 -> 0 | L55: =$F$50*L$21*L16*L24 -> 0 | M55: 0 | N55: 0 | O55: 0 | P55: 0 | Q55: 0 | R55: 0 | S55: 0 | T55: 0 | U55: 0 | V55: 0 | W55: 0 | X55: 310.1320637 | Y55: 316.3347049 | Z55: 322.661399 | AA55: 329.114627 | AB55: 335.6969196 | AC55: 342.410858 | AD55: 349.2590751 | AE55: 356.2442566 | AF55: 363.3691417 | AG55: 370.6365246 | AH55: 378.0492551 | AI55: 385.6102402 | AJ55: 393.322445 | AK55: 401.1888939 | AL55: 409.2126718 | AM55: 417.3969252 | AN55: 425.7448637 | AO55: 434.259761 | AP55: 442.9449562 | AQ55: 451.8038553 | AR55: 460.8399324 | AS55: 470.0567311 | AT55: 479.4578657 | AU55: 0
E56: Nodule Collectors Opex | G56: US$ mn | I56: 17154.93408 | K56: =K52+K54 -> 0 | L56: =L52+L54 -> 0 | M56: 0 | N56: 0 | O56: 0 | P56: 0 | Q56: 0 | R56: 0 | S56: 0 | T56: 0 | U56: 0 | V56: 458.4890514 | W56: 508.9228471 | X56: 561.190599 | Y56: 572.4144109 | Z56: 583.8626992 | AA56: 595.5399531 | AB56: 607.4507522 | AC56: 619.5997672 | AD56: 631.9917626 | AE56: 644.6315978 | AF56: 657.5242298 | AG56: 670.6747144 | AH56: 684.0882087 | AI56: 697.7699729 | AJ56: 711.7253723 | AK56: 725.9598798 | AL56: 740.4790774 | AM56: 755.2886589 | AN56: 770.3944321 | AO56: 785.8023207 | AP56: 801.5183671 | AQ56: 817.5487345 | AR56: 833.8997092 | AS56: 850.5777034 | AT56: 867.5892574 | AU56: 0
E57: Metals Processors Opex | G57: US$ mn | I57: 9547.888267 | K57: =K53+K55 -> 0 | L57: =L53+L55 -> 0 | M57: 0 | N57: 0 | O57: 0 | P57: 0 | Q57: 0 | R57: 0 | S57: 0 | T57: 0 | U57: 0 | V57: 298.0892577 | W57: 304.0510428 | X57: 310.1320637 | Y57: 316.3347049 | Z57: 322.661399 | AA57: 329.114627 | AB57: 335.6969196 | AC57: 342.410858 | AD57: 349.2590751 | AE57: 356.2442566 | AF57: 363.3691417 | AG57: 370.6365246 | AH57: 378.0492551 | AI57: 385.6102402 | AJ57: 393.322445 | AK57: 401.1888939 | AL57: 409.2126718 | AM57: 417.3969252 | AN57: 425.7448637 | AO57: 434.259761 | AP57: 442.9449562 | AQ57: 451.8038553 | AR57: 460.8399324 | AS57: 470.0567311 | AT57: 479.4578657 | AU57: 0
E59: Nodule Collectors Opex with sensitivity applied | G59: US$ mn | I59: =SUM(K59:AU59) -> 17154.93408 | K59: =K56*$F$9 -> 0 | L59: 0 | M59: 0 | N59: 0 | O59: 0 | P59: 0 | Q59: 0 | R59: 0 | S59: 0 | T59: 0 | U59: 0 | V59: 458.4890514 | W59: 508.9228471 | X59: 561.190599 | Y59: 572.4144109 | Z59: 583.8626992 | AA59: 595.5399531 | AB59: 607.4507522 | AC59: 619.5997672 | AD59: 631.9917626 | AE59: 644.6315978 | AF59: 657.5242298 | AG59: 670.6747144 | AH59: 684.0882087 | AI59: 697.7699729 | AJ59: 711.7253723 | AK59: 725.9598798 | AL59: 740.4790774 | AM59: 755.2886589 | AN59: 770.3944321 | AO59: 785.8023207 | AP59: 801.5183671 | AQ59: 817.5487345 | AR59: 833.8997092 | AS59: 850.5777034 | AT59: 867.5892574 | AU59: 0
E60: Metals Processors Opex with sensitivity applied | G60: US$ mn | I60: =SUM(K60:AU60) -> 9547.888267 | K60: =K57*$F$9 -> 0 | L60: =L57*$F$9 -> 0 | M60: 0 | N60: 0 | O60: 0 | P60: 0 | Q60: 0 | R60: 0 | S60: 0 | T60: 0 | U60: 0 | V60: 298.0892577 | W60: 304.0510428 | X60: 310.1320637 | Y60: 316.3347049 | Z60: 322.661399 | AA60: 329.114627 | AB60: 335.6969196 | AC60: 342.410858 | AD60: 349.2590751 | AE60: 356.2442566 | AF60: 363.3691417 | AG60: 370.6365246 | AH60: 378.0492551 | AI60: 385.6102402 | AJ60: 393.322445 | AK60: 401.1888939 | AL60: 409.2126718 | AM60: 417.3969252 | AN60: 425.7448637 | AO60: 434.259761 | AP60: 442.9449562 | AQ60: 451.8038553 | AR60: 460.8399324 | AS60: 470.0567311 | AT60: 479.4578657 | AU60: 0
E62: ='T&E'!E46 -> Collectors - maintenance flag | I62: ='T&E'!I46 -> 12 | K62: ='T&E'!K46 -> 0 | L62: ='T&E'!L46 -> 0 | M62: ='T&E'!M46 -> 0 | N62: ='T&E'!N46 -> 0 | O62: ='T&E'!O46 -> 0 | P62: ='T&E'!P46 -> 0 | Q62: ='T&E'!Q46 -> 0 | R62: ='T&E'!R46 -> 0 | S62: ='T&E'!S46 -> 0 | T62: ='T&E'!T46 -> 0 | U62: ='T&E'!U46 -> 0 | V62: ='T&E'!V46 -> 0 | W62: ='T&E'!W46 -> 1 | X62: ='T&E'!X46 -> 0 | Y62: ='T&E'!Y46 -> 1 | Z62: ='T&E'!Z46 -> 0 | AA62: ='T&E'!AA46 -> 1 | AB62: ='T&E'!AB46 -> 0 | AC62: ='T&E'!AC46 -> 1 | AD62: ='T&E'!AD46 -> 0 | AE62: ='T&E'!AE46 -> 1 | AF62: ='T&E'!AF46 -> 0 | AG62: ='T&E'!AG46 -> 1 | AH62: ='T&E'!AH46 -> 0 | AI62: ='T&E'!AI46 -> 1 | AJ62: ='T&E'!AJ46 -> 0 | AK62: ='T&E'!AK46 -> 1 | AL62: ='T&E'!AL46 -> 0 | AM62: ='T&E'!AM46 -> 1 | AN62: ='T&E'!AN46 -> 0 | AO62: ='T&E'!AO46 -> 1 | AP62: ='T&E'!AP46 -> 0 | AQ62: ='T&E'!AQ46 -> 1 | AR62: ='T&E'!AR46 -> 0 | AS62: ='T&E'!AS46 -> 1 | AT62: ='T&E'!AT46 -> 0 | AU62: ='T&E'!AU46 -> 0
E63: ='T&E'!E47 -> Risers - maintenance flag | I63: ='T&E'!I47 -> 5 | K63: ='T&E'!K47 -> 0 | L63: ='T&E'!L47 -> 0 | M63: ='T&E'!M47 -> 0 | N63: ='T&E'!N47 -> 0 | O63: ='T&E'!O47 -> 0 | P63: ='T&E'!P47 -> 0 | Q63: ='T&E'!Q47 -> 0 | R63: ='T&E'!R47 -> 0 | S63: ='T&E'!S47 -> 0 | T63: ='T&E'!T47 -> 0 | U63: ='T&E'!U47 -> 0 | V63: ='T&E'!V47 -> 0 | W63: ='T&E'!W47 -> 0 | X63: ='T&E'!X47 -> 0 | Y63: ='T&E'!Y47 -> 0 | Z63: ='T&E'!Z47 -> 1 | AA63: ='T&E'!AA47 -> 0 | AB63: ='T&E'!AB47 -> 0 | AC63: ='T&E'!AC47 -> 0 | AD63: ='T&E'!AD47 -> 0 | AE63: ='T&E'!AE47 -> 1 | AF63: ='T&E'!AF47 -> 0 | AG63: ='T&E'!AG47 -> 0 | AH63: ='T&E'!AH47 -> 0 | AI63: ='T&E'!AI47 -> 0 | AJ63: ='T&E'!AJ47 -> 1 | AK63: ='T&E'!AK47 -> 0 | AL63: ='T&E'!AL47 -> 0 | AM63: ='T&E'!AM47 -> 0 | AN63: ='T&E'!AN47 -> 0 | AO63: ='T&E'!AO47 -> 1 | AP63: ='T&E'!AP47 -> 0 | AQ63: ='T&E'!AQ47 -> 0 | AR63: ='T&E'!AR47 -> 0 | AS63: ='T&E'!AS47 -> 0 | AT63: ='T&E'!AT47 -> 1 | AU63: ='T&E'!AU47 -> 0
E64: ='T&E'!E48 -> Moorings - maintenance flag | I64: ='T&E'!I48 -> 5 | K64: ='T&E'!K48 -> 0 | L64: ='T&E'!L48 -> 0 | M64: ='T&E'!M48 -> 0 | N64: ='T&E'!N48 -> 0 | O64: ='T&E'!O48 -> 0 | P64: ='T&E'!P48 -> 0 | Q64: ='T&E'!Q48 -> 0 | R64: ='T&E'!R48 -> 0 | S64: ='T&E'!S48 -> 0 | T64: ='T&E'!T48 -> 0 | U64: ='T&E'!U48 -> 0 | V64: ='T&E'!V48 -> 0 | W64: ='T&E'!W48 -> 0 | X64: ='T&E'!X48 -> 0 | Y64: ='T&E'!Y48 -> 0 | Z64: ='T&E'!Z48 -> 1 | AA64: ='T&E'!AA48 -> 0 | AB64: ='T&E'!AB48 -> 0 | AC64: ='T&E'!AC48 -> 0 | AD64: ='T&E'!AD48 -> 0 | AE64: ='T&E'!AE48 -> 1 | AF64: ='T&E'!AF48 -> 0 | AG64: ='T&E'!AG48 -> 0 | AH64: ='T&E'!AH48 -> 0 | AI64: ='T&E'!AI48 -> 0 | AJ64: ='T&E'!AJ48 -> 1 | AK64: ='T&E'!AK48 -> 0 | AL64: ='T&E'!AL48 -> 0 | AM64: ='T&E'!AM48 -> 0 | AN64: ='T&E'!AN48 -> 0 | AO64: ='T&E'!AO48 -> 1 | AP64: ='T&E'!AP48 -> 0 | AQ64: ='T&E'!AQ48 -> 0 | AR64: ='T&E'!AR48 -> 0 | AS64: ='T&E'!AS48 -> 0 | AT64: ='T&E'!AT48 -> 1 | AU64: ='T&E'!AU48 -> 0
E65: Collectors maintenance cost | F65: =Inputs!F91 -> 47.2 | G65: =Inputs!G91 -> US$ mn (real) | H65: =Inputs!F95&" "&Inputs!G95&" interval" -> 2 years interval
E66: Risers maintenance cost | F66: =Inputs!F92 -> 49.855 | G66: =Inputs!G92 -> US$ mn (real) | H66: =Inputs!F96&" "&Inputs!G96&" interval" -> 5 years interval
E67: Moorings maintenance cost | F67: =Inputs!F93 -> 5.605 | G67: =Inputs!G93 -> US$ mn (real) | H67: =Inputs!F97&" "&Inputs!G97&" interval" -> 5 years interval
E69: Collectors maintenance cost | G69: US$ mn | I69: =SUM(K69:AU69) -> 916.5779201 | K69: =$F65*K62*K$24 -> 0 | L69: =$F65*L62*L$24 -> 0 | M69: 0 | N69: 0 | O69: 0 | P69: 0 | Q69: 0 | R69: 0 | S69: 0 | T69: 0 | U69: 0 | V69: 0 | W69: 60.86042234 | X69: 0 | Y69: 63.31918341 | Z69: 0 | AA69: 65.87727842 | AB69: 0 | AC69: 68.53872046 | AD69: 0 | AE69: 71.30768477 | AF69: 0 | AG69: 74.18851524 | AH69: 0 | AI69: 77.18573125 | AJ69: 0 | AK69: 80.30403479 | AL69: 0 | AM69: 83.5483178 | AN69: 0 | AO69: 86.92366984 | AP69: 0 | AQ69: 90.4353861 | AR69: 0 | AS69: 94.0889757 | AT69: 0 | AU69: 0
E70: Risers maintenance cost | G70: US$ mn | I70: 419.8774609 | K70: =$F66*K63*K$24 -> 0 | L70: =$F66*L63*L$24 -> 0 | M70: 0 | N70: 0 | O70: 0 | P70: 0 | Q70: 0 | R70: 0 | S70: 0 | T70: 0 | U70: 0 | V70: 0 | W70: 0 | X70: 0 | Y70: 0 | Z70: 68.21850522 | AA70: 0 | AB70: 0 | AC70: 0 | AD70: 0 | AE70: 75.31874204 | AF70: 0 | AG70: 0 | AH70: 0 | AI70: 0 | AJ70: 83.15797721 | AK70: 0 | AL70: 0 | AM70: 0 | AN70: 0 | AO70: 91.81312627 | AP70: 0 | AQ70: 0 | AR70: 0 | AS70: 0 | AT70: 101.3691102 | AU70: 0
E71: Moorings maintenance cost | G71: US$ mn | I71: 47.20515833 | K71: =$F67*K64*K$24 -> 0 | L71: =$F67*L64*L$24 -> 0 | M71: 0 | N71: 0 | O71: 0 | P71: 0 | Q71: 0 | R71: 0 | S71: 0 | T71: 0 | U71: 0 | V71: 0 | W71: 0 | X71: 0 | Y71: 0 | Z71: 7.66953609 | AA71: 0 | AB71: 0 | AC71: 0 | AD71: 0 | AE71: 8.467787567 | AF71: 0 | AG71: 0 | AH71: 0 | AI71: 0 | AJ71: 9.349121698 | AK71: 0 | AL71: 0 | AM71: 0 | AN71: 0 | AO71: 10.32218579 | AP71: 0 | AQ71: 0 | AR71: 0 | AS71: 0 | AT71: 11.39652718 | AU71: 0
E73: =E65&" with sensitivity applied" -> Collectors maintenance cost with sensitivity applied | G73: US$ mn | I73: =SUM(K73:AU73) -> 916.5779201 | K73: =K69*$F$9 -> 0 | L73: 0 | M73: 0 | N73: 0 | O73: 0 | P73: 0 | Q73: 0 | R73: 0 | S73: 0 | T73: 0 | U73: 0 | V73: 0 | W73: 60.86042234 | X73: 0 | Y73: 63.31918341 | Z73: 0 | AA73: 65.87727842 | AB73: 0 | AC73: 68.53872046 | AD73: 0 | AE73: 71.30768477 | AF73: 0 | AG73: 74.18851524 | AH73: 0 | AI73: 77.18573125 | AJ73: 0 | AK73: 80.30403479 | AL73: 0 | AM73: 83.5483178 | AN73: 0 | AO73: 86.92366984 | AP73: 0 | AQ73: 90.4353861 | AR73: 0 | AS73: 94.0889757 | AT73: 0 | AU73: 0
E74: =E66&" with sensitivity applied" -> Risers maintenance cost with sensitivity applied | G74: US$ mn | I74: 419.8774609 | K74: =K70*$F$9 -> 0 | L74: 0 | M74: 0 | N74: 0 | O74: 0 | P74: 0 | Q74: 0 | R74: 0 | S74: 0 | T74: 0 | U74: 0 | V74: 0 | W74: 0 | X74: 0 | Y74: 0 | Z74: 68.21850522 | AA74: 0 | AB74: 0 | AC74: 0 | AD74: 0 | AE74: 75.31874204 | AF74: 0 | AG74: 0 | AH74: 0 | AI74: 0 | AJ74: 83.15797721 | AK74: 0 | AL74: 0 | AM74: 0 | AN74: 0 | AO74: 91.81312627 | AP74: 0 | AQ74: 0 | AR74: 0 | AS74: 0 | AT74: 101.3691102 | AU74: 0
E75: =E67&" with sensitivity applied" -> Moorings maintenance cost with sensitivity applied | G75: US$ mn | I75: 47.20515833 | K75: =K71*$F$9 -> 0 | L75: 0 | M75: 0 | N75: 0 | O75: 0 | P75: 0 | Q75: 0 | R75: 0 | S75: 0 | T75: 0 | U75: 0 | V75: 0 | W75: 0 | X75: 0 | Y75: 0 | Z75: 7.66953609 | AA75: 0 | AB75: 0 | AC75: 0 | AD75: 0 | AE75: 8.467787567 | AF75: 0 | AG75: 0 | AH75: 0 | AI75: 0 | AJ75: 9.349121698 | AK75: 0 | AL75: 0 | AM75: 0 | AN75: 0 | AO75: 10.32218579 | AP75: 0 | AQ75: 0 | AR75: 0 | AS75: 0 | AT75: 11.39652718 | AU75: 0
C77: Capex
